Body Name,Body,Transaction Date,Value,Supplier,Description,Purchase Type,Cost Center,Department,Section
South Ribble Council,http://Statistics.Data.gov.uk\Doc\Local Authority\30UN,04/10/2022,104.00,Premier Inn Preston South PR5 6BZ,NAME REDACTED Premier Inn Preston South PR5 6BZ ,Accomodation,124250,COMU-Communities,JBC-Homelessness
South Ribble Council,http://Statistics.Data.gov.uk\Doc\Local Authority\30UN,12/10/2022,81.60,Premier Inn Preston South PR5 6BZ,NAME REDACTED Premier Inn Preston South PR5 6BZ ,Accomodation,124250,COMU-Communities,JBC-Homelessness
South Ribble Council,http://Statistics.Data.gov.uk\Doc\Local Authority\30UN,12/10/2022,84.15,Premier Inn Preston South PR5 6BZ,NAME REDACTED Premier Inn Preston South PR5 6BZ ,Accomodation,124250,COMU-Communities,JBC-Homelessness
South Ribble Council,http://Statistics.Data.gov.uk\Doc\Local Authority\30UN,13/10/2022,281.35,Premier Inn Preston Central PR1 2AB,NAME REDACTED Premier Inn Preston Central PR1 2A,Accomodation,124050,COMU-Communities,JBC-Homelessness
South Ribble Council,http://Statistics.Data.gov.uk\Doc\Local Authority\30UN,17/10/2022,53.02,Travelodge Preston Chorley PR6 7JB,NAME REDACTED Travelodge Chorley PR6 7JB 17.10.2,Accomodation,124250,COMU-Communities,JBC-Homelessness
South Ribble Council,http://Statistics.Data.gov.uk\Doc\Local Authority\30UN,17/10/2022,74.80,Premier Inn Preston Central PR1 2AB,NAME REDACTED Premier Inn Preston Central PR1 2A,Accomodation,124250,COMU-Communities,JBC-Homelessness
South Ribble Council,http://Statistics.Data.gov.uk\Doc\Local Authority\30UN,17/10/2022,529.00,Premier Inn Preston Central PR1 2AB,NAME REDACTED Premier Inn Preston Central PR1 2A,Accomodation,124050,COMU-Communities,JBC-Homelessness
South Ribble Council,http://Statistics.Data.gov.uk\Doc\Local Authority\30UN,17/10/2022,662.91,Travelodge Preston Chorley PR6 7JB,NAME REDACTED Travelodge Chorley PR6 7JB 17.10.2,Accomodation,124050,COMU-Communities,JBC-Homelessness
South Ribble Council,http://Statistics.Data.gov.uk\Doc\Local Authority\30UN,18/10/2022,107.08,Travelodge Preston Chorley PR6 7JB,NAME REDACTED Travelodge Preston Chorley PR6 7JB,Accomodation,124250,COMU-Communities,JBC-Homelessness
South Ribble Council,http://Statistics.Data.gov.uk\Doc\Local Authority\30UN,18/10/2022,107.08,Travelodge Preston Chorley PR6 7JB,NAME REDACTED Travelodge Preston Chorley PR6 7JB,Accomodation,124250,COMU-Communities,JBC-Homelessness
South Ribble Council,http://Statistics.Data.gov.uk\Doc\Local Authority\30UN,18/10/2022,164.19,Travelodge Preston Chorley PR6 7JB,NAME REDACTED  Travelodge Preston Chorley PR6 7J,Accomodation,124050,COMU-Communities,JBC-Homelessness
South Ribble Council,http://Statistics.Data.gov.uk\Doc\Local Authority\30UN,19/10/2022,75.46,Travelodge Preston Chorley PR6 7JB,NAME REDACTED Travelodge Preston Chorley PR6 7JB,Accomodation,124250,COMU-Communities,JBC-Homelessness
South Ribble Council,http://Statistics.Data.gov.uk\Doc\Local Authority\30UN,19/10/2022,75.46,Travelodge Preston Chorley PR6 7JB,NAME REDACTED Travelodge Preston Chorley PR6 7JB,Accomodation,124250,COMU-Communities,JBC-Homelessness
South Ribble Council,http://Statistics.Data.gov.uk\Doc\Local Authority\30UN,19/10/2022,75.46,Travelodge Preston Chorley PR6 7JB,NAME REDACTED Travelodge Preston Chorley PR6 7JB,Accomodation,124250,COMU-Communities,JBC-Homelessness
South Ribble Council,http://Statistics.Data.gov.uk\Doc\Local Authority\30UN,19/10/2022,81.60,Premier Inn Preston Central PR1 2AB,NAME REDACTED Premeir Inn Preston Central PR1 2A,Accomodation,124250,COMU-Communities,JBC-Homelessness
South Ribble Council,http://Statistics.Data.gov.uk\Doc\Local Authority\30UN,19/10/2022,416.09,Travelodge Preston Chorley PR6 7JB,NAME REDACTED  Travelodge Preston Chorley PR6 7J,Accomodation,124050,COMU-Communities,JBC-Homelessness
South Ribble Council,http://Statistics.Data.gov.uk\Doc\Local Authority\30UN,19/10/2022,635.35,Holiday Inn Express Preston South,NAME REDACTED Holiday Inn Express Preston South ,Accomodation,124250,COMU-Communities,JBC-Homelessness
South Ribble Council,http://Statistics.Data.gov.uk\Doc\Local Authority\30UN,20/10/2022,66.30,Premier Inn Preston Central PR1 2AB,NAME REDACTED Premier Inn Preston Central PR1 2A,Accomodation,124250,COMU-Communities,JBC-Homelessness
South Ribble Council,http://Statistics.Data.gov.uk\Doc\Local Authority\30UN,20/10/2022,99.94,Travelodge Preston Chorley PR6 7JB,NAME REDACTED Travelodge Preston Chorley PR6 7JB,Accomodation,124250,COMU-Communities,JBC-Homelessness
South Ribble Council,http://Statistics.Data.gov.uk\Doc\Local Authority\30UN,20/10/2022,99.94,Travelodge Preston Chorley PR6 7JB,NAME REDACTED Travelodge Preston Chorley PR6 7JB,Accomodation,124250,COMU-Communities,JBC-Homelessness
South Ribble Council,http://Statistics.Data.gov.uk\Doc\Local Authority\30UN,20/10/2022,99.94,Travelodge Preston Chorley PR6 7JB,NAME REDACTED Travelodge Preston Chorley PR6 7JB,Accomodation,124250,COMU-Communities,JBC-Homelessness
South Ribble Council,http://Statistics.Data.gov.uk\Doc\Local Authority\30UN,20/10/2022,477.29,Travelodge Preston Chorley PR6 7JB,NAME REDACTED  Travelodge Preston Chorley PR6 7J,Accomodation,124050,COMU-Communities,JBC-Homelessness
South Ribble Council,http://Statistics.Data.gov.uk\Doc\Local Authority\30UN,21/10/2022,197.84,Travelodge Preston Chorley PR6 7JB,NAME REDACTED Travelodge Preston Chorley PR6 7JB,Accomodation,124250,COMU-Communities,JBC-Homelessness
South Ribble Council,http://Statistics.Data.gov.uk\Doc\Local Authority\30UN,21/10/2022,197.84,Travelodge Preston Chorley PR6 7JB,NAME REDACTED Travelodge Preston Chorley PR6 7JB,Accomodation,124250,COMU-Communities,JBC-Homelessness
South Ribble Council,http://Statistics.Data.gov.uk\Doc\Local Authority\30UN,21/10/2022,208.04,Travelodge Preston Chorley PR6 7JB,NAME REDACTED Travelodge Preston Chorley PR6 7JB,Accomodation,124050,COMU-Communities,JBC-Homelessness
South Ribble Council,http://Statistics.Data.gov.uk\Doc\Local Authority\30UN,21/10/2022,211.65,Premier Inn Preston Central PR1 2AB,NAME REDACTED Premier Inn Preston Central PR1 2A,Accomodation,124250,COMU-Communities,JBC-Homelessness
South Ribble Council,http://Statistics.Data.gov.uk\Doc\Local Authority\30UN,21/10/2022,221.30,Travelodge Preston Chorley PR6 7JB,NAME REDACTED Travelodge Preston Chorley PR6 7JB,Accomodation,124250,COMU-Communities,JBC-Homelessness
South Ribble Council,http://Statistics.Data.gov.uk\Doc\Local Authority\30UN,21/10/2022,231.50,Travelodge Preston Chorley PR6 7JB,NAME REDACTED Travelodge Preston Chorley PR6 7JB,Accomodation,124250,COMU-Communities,JBC-Homelessness
South Ribble Council,http://Statistics.Data.gov.uk\Doc\Local Authority\30UN,21/10/2022,255.00,Premier Inn Southport Central PR8 1RY,NAME REDACTED Premier Inn Southport Central PR8 ,Accomodation,124050,COMU-Communities,JBC-Homelessness
South Ribble Council,http://Statistics.Data.gov.uk\Doc\Local Authority\30UN,24/10/2022,66.28,Travelodge Chorley PR6 7JB,NAME REDACTED Travelodge Chorley PR6 7JB 24.10.2,Accomodation,124250,COMU-Communities,JBC-Homelessness
South Ribble Council,http://Statistics.Data.gov.uk\Doc\Local Authority\30UN,27/10/2022,54.04,Travelodge Chorley PR6 7JB,NAME REDACTED Travelodge Chorley PR6 7JB 27.10.2,Accomodation,124250,COMU-Communities,JBC-Homelessness
South Ribble Council,http://Statistics.Data.gov.uk\Doc\Local Authority\30UN,27/10/2022,73.42,Travelodge Chorley PR6 7JB,NAME REDACTED Travelodge Chorley PR6 7JB 27.10.2,Accomodation,124250,COMU-Communities,JBC-Homelessness
South Ribble Council,http://Statistics.Data.gov.uk\Doc\Local Authority\30UN,27/10/2022,73.42,Travelodge Chorley PR6 7JB,NAME REDACTED Travelodge Chorley PR6 7JB 27.10.2,Accomodation,124250,COMU-Communities,JBC-Homelessness
South Ribble Council,http://Statistics.Data.gov.uk\Doc\Local Authority\30UN,27/10/2022,75.00,ibis Preston North PR3 5JE,NAME REDACTED ibis Preston North PR3 5JE 27.10.2,Accomodation,124250,COMU-Communities,JBC-Homelessness
South Ribble Council,http://Statistics.Data.gov.uk\Doc\Local Authority\30UN,27/10/2022,91.78,Travelodge Chorley PR6 7JB,NAME REDACTED Travelodge Chorley PR6 7JB 27.10.2,Accomodation,124250,COMU-Communities,JBC-Homelessness
South Ribble Council,http://Statistics.Data.gov.uk\Doc\Local Authority\30UN,28/10/2022,242.72,Travelodge Chorley PR6 7JB,NAME REDACTED Travelodge Chorley PR6 7JB 28.10.2,Accomodation,124250,COMU-Communities,JBC-Homelessness
South Ribble Council,http://Statistics.Data.gov.uk\Doc\Local Authority\30UN,28/10/2022,261.80,Premier Inn Preston Central PR1 2AB,NAME REDACTED Premier Inn Preston Central PR1 2A,Accomodation,124250,COMU-Communities,JBC-Homelessness
South Ribble Council,http://Statistics.Data.gov.uk\Doc\Local Authority\30UN,01/11/2022,65.00,ibis Preston North PR3 5JE,NAME REDACTED ibis Preston North PR3 5JE 01.11.2,Accomodation,124250,COMU-Communities,JBC-Homelessness
South Ribble Council,http://Statistics.Data.gov.uk\Doc\Local Authority\30UN,01/11/2022,66.28,Travelodge Preston Chorley PR6 7JB,NAME REDACTED Travelodge Preston Chorley PR6 7JB,Accomodation,124250,COMU-Communities,JBC-Homelessness
South Ribble Council,http://Statistics.Data.gov.uk\Doc\Local Authority\30UN,01/11/2022,87.70,Travelodge Preston Chorley PR6 7JB,NAME REDACTED  Travelodge Preston Chorley PR6 7J,Accomodation,124050,COMU-Communities,JBC-Homelessness
South Ribble Council,http://Statistics.Data.gov.uk\Doc\Local Authority\30UN,01/11/2022,122.36,Travelodge Southport PR8 1RN,NAME REDACTED Travelodge Southport PR8 1RN 01.11,Accomodation,124050,COMU-Communities,JBC-Homelessness
South Ribble Council,http://Statistics.Data.gov.uk\Doc\Local Authority\30UN,01/11/2022,195.00,ibis Preston North PR3 5JE,NAME REDACTED ibis Preston North PR3 5JE 01.11.2,Accomodation,124050,COMU-Communities,JBC-Homelessness
South Ribble Council,http://Statistics.Data.gov.uk\Doc\Local Authority\30UN,01/11/2022,222.70,Premier Inn Preston Central PR1 2AB,NAME REDACTED Premier Inn Preston Central PR1 2A,Accomodation,124250,COMU-Communities,JBC-Homelessness
South Ribble Council,http://Statistics.Data.gov.uk\Doc\Local Authority\30UN,02/11/2022,405.00,Holiday Inn Express Preston South,NAME REDACTED Holiday Inn Express Preston South ,Accomodation,124050,COMU-Communities,JBC-Homelessness
South Ribble Council,http://Statistics.Data.gov.uk\Doc\Local Authority\30UN,02/11/2022,619.00,Holiday Inn Express Preston South,NAME REDACTED Holiday Inn Express Preston South ,Accomodation,124050,COMU-Communities,JBC-Homelessness
South Ribble Council,http://Statistics.Data.gov.uk\Doc\Local Authority\30UN,03/11/2022,77.50,Travelodge Preston Chorley PR6 7JB,NAME REDACTED Travelodge Preston Chorley PR6 7JB,Accomodation,124250,COMU-Communities,JBC-Homelessness
South Ribble Council,http://Statistics.Data.gov.uk\Doc\Local Authority\30UN,03/11/2022,189.96,Travelodge Preston Chorley PR6 7JB,NAME REDACTED Travelodge Preston Chorley PR6 7JB,Accomodation,124050,COMU-Communities,JBC-Homelessness
South Ribble Council,http://Statistics.Data.gov.uk\Doc\Local Authority\30UN,03/11/2022,243.45,Travelodge Preston Chorley PR6 7JB,NAME REDACTED Travelodge Preston Chorley PR6 7JB,Accomodation,124050,COMU-Communities,JBC-Homelessness
South Ribble Council,http://Statistics.Data.gov.uk\Doc\Local Authority\30UN,04/11/2022,30.00,Holiday Inn Express Preston South PR58AA,Pets surcharge for NAME REDACTED at Holiday Inn Express Preston South on 04.11.22,Accomodation,124050,COMU-Communities,JBC-Homelessness
South Ribble Council,http://Statistics.Data.gov.uk\Doc\Local Authority\30UN,04/11/2022,195.00,ibis Preston North PR3 5JE,NAME REDACTED ibis Preston North PR3 5JE 04.11.2,Accomodation,124250,COMU-Communities,JBC-Homelessness
South Ribble Council,http://Statistics.Data.gov.uk\Doc\Local Authority\30UN,04/11/2022,227.42,Travelodge Preston Chorley PR6 7JB,NAME REDACTED Travelodge Preston Chorley PR6 7JB,Accomodation,124250,COMU-Communities,JBC-Homelessness
South Ribble Council,http://Statistics.Data.gov.uk\Doc\Local Authority\30UN,04/11/2022,445.00,ibis Preston North PR3 5JE,NAME REDACTED ibis Preston North PR3 5JE 04.11.2,Accomodation,124050,COMU-Communities,JBC-Homelessness
South Ribble Council,http://Statistics.Data.gov.uk\Doc\Local Authority\30UN,08/11/2022,325.30,Travelodge Southport PR8 1RN,NAME REDACTED Travelodge Southport PR8 1RN 08.11,Accomodation,124250,COMU-Communities,JBC-Homelessness
South Ribble Council,http://Statistics.Data.gov.uk\Doc\Local Authority\30UN,09/11/2022,254.70,Travelodge Lytham St Annes FY8 1LP,NAME REDACTED Travelodge Lytham St Annes FY8 1LP,Accomodation,124050,COMU-Communities,JBC-Homelessness
South Ribble Council,http://Statistics.Data.gov.uk\Doc\Local Authority\30UN,09/11/2022,293.95,Travelodge Lytham St Annes FY8 1LP,NAME REDACTED Travelodge Lytham St Annes FY8 1LP,Accomodation,124250,COMU-Communities,JBC-Homelessness
South Ribble Council,http://Statistics.Data.gov.uk\Doc\Local Authority\30UN,09/11/2022,385.00,ibis Preston North PR3 5JE,NAME REDACTED ibis Preston North PR3 5JE 09.11.2,Accomodation,124250,COMU-Communities,JBC-Homelessness
South Ribble Council,http://Statistics.Data.gov.uk\Doc\Local Authority\30UN,09/11/2022,625.00,Holiday Inn Express Preston South PR58AA,NAME REDACTED Holiday Inn Express Preston South ,Accomodation,124250,COMU-Communities,JBC-Homelessness
South Ribble Council,http://Statistics.Data.gov.uk\Doc\Local Authority\30UN,11/11/2022,193.80,Premier Inn Preston South PR5 6BZ,NAME REDACTED Premier Inn Preston South PR5 6BZ ,Accomodation,124250,COMU-Communities,JBC-Homelessness
South Ribble Council,http://Statistics.Data.gov.uk\Doc\Local Authority\30UN,14/11/2022,91.80,Premier Inn Preston South PR5 6BZ,NAME REDACTED Premier Inn Preston South PR5 6BZ ,Accomodation,124250,COMU-Communities,JBC-Homelessness
South Ribble Council,http://Statistics.Data.gov.uk\Doc\Local Authority\30UN,14/11/2022,102.85,Premier Inn Preston South PR5 6BZ,NAME REDACTED Premier Inn Preston South PR5 6BZ ,Accomodation,124250,COMU-Communities,JBC-Homelessness
South Ribble Council,http://Statistics.Data.gov.uk\Doc\Local Authority\30UN,16/11/2022,602.00,Holiday Inn Express Preston South PR58AA,NAME REDACTED Holiday Inn Express Preston South ,Accomodation,124050,COMU-Communities,JBC-Homelessness
South Ribble Council,http://Statistics.Data.gov.uk\Doc\Local Authority\30UN,22/11/2022,83.30,Premier Inn Preston Central PR1 2AB,NAME REDACTED Premier Inn Preston Central PR1 2A,Accomodation,124250,COMU-Communities,JBC-Homelessness
South Ribble Council,http://Statistics.Data.gov.uk\Doc\Local Authority\30UN,22/11/2022,83.30,Premier Inn Preston Central PR1 2AB,NAME REDACTED Premier Inn Preston Central PR1 2A,Accomodation,124250,COMU-Communities,JBC-Homelessness
South Ribble Council,http://Statistics.Data.gov.uk\Doc\Local Authority\30UN,22/11/2022,107.08,Travelodge Preston Chorley PR6 7JB,NAME REDACTED Travelodge Preston Chorley PR6 7JB,Accomodation,124250,COMU-Communities,JBC-Homelessness
South Ribble Council,http://Statistics.Data.gov.uk\Doc\Local Authority\30UN,23/11/2022,99.99,Travelodge Preston Chorley PR6 7JB,NAME REDACTED Travelodge Preston Chorley PR6 7JB,Accomodation,124250,COMU-Communities,JBC-Homelessness
South Ribble Council,http://Statistics.Data.gov.uk\Doc\Local Authority\30UN,02/12/2022,208.25,Premier Inn Preston South (Craven Drive),NAME REDACTED Premier Inn Preston South (Craven ,Accomodation,124250,COMU-Communities,JBC-Homelessness
South Ribble Council,http://Statistics.Data.gov.uk\Doc\Local Authority\30UN,02/12/2022,208.25,Premier Inn Preston South (Craven Drive),NAME REDACTED Premier Inn Preston South (Craven ,Accomodation,124250,COMU-Communities,JBC-Homelessness
South Ribble Council,http://Statistics.Data.gov.uk\Doc\Local Authority\30UN,04/12/2022,59.00,Premier Inn Preston South PR5 6BZ,NAME REDACTED Premier Inn Preston South PR5 6BZ ,Accomodation,124250,COMU-Communities,JBC-Homelessness
South Ribble Council,http://Statistics.Data.gov.uk\Doc\Local Authority\30UN,07/12/2022,68.00,Premier Inn Bolton Stadium Arena BL6 6LB,NAME REDACTED Premier Inn Bolton Stadium Arena B,Accomodation,124250,COMU-Communities,JBC-Homelessness
South Ribble Council,http://Statistics.Data.gov.uk\Doc\Local Authority\30UN,08/12/2022,140.00,ibis Preston North PR3 5JE,NAME REDACTED ibis Preston North PR3 5JE 07.12.2,Accomodation,124250,COMU-Communities,JBC-Homelessness
South Ribble Council,http://Statistics.Data.gov.uk\Doc\Local Authority\30UN,12/12/2022,10.00,Avacab Leyland Taxis,NAME REDACTED taxi with Avacab Leyland Taxis to ,Accomodation,124250,COMU-Communities,JBC-Homelessness
South Ribble Council,http://Statistics.Data.gov.uk\Doc\Local Authority\30UN,12/12/2022,62.05,Premier Inn Preston South PR5 6BZ,NAME REDACTED Premier Inn Preston South PR5 6BZ ,Accomodation,124250,COMU-Communities,JBC-Homelessness
South Ribble Council,http://Statistics.Data.gov.uk\Doc\Local Authority\30UN,12/12/2022,62.05,Premier Inn Preston South PR5 6BZ,NAME REDACTED Premier Inn Preston South PR5 6BZ ,Accomodation,124250,COMU-Communities,JBC-Homelessness
South Ribble Council,http://Statistics.Data.gov.uk\Doc\Local Authority\30UN,12/12/2022,64.60,Premier Inn Preston Central PR1 2AB,NAME REDACTED Premier Inn Preston Central PR1 2A,Accomodation,124250,COMU-Communities,JBC-Homelessness
South Ribble Council,http://Statistics.Data.gov.uk\Doc\Local Authority\30UN,15/12/2022,673.00,Holiday Inn Express Preston South PR58AA,NAME REDACTED Holiday Inn Express Preston South ,Accomodation,124050,COMU-Communities,JBC-Homelessness
South Ribble Council,http://Statistics.Data.gov.uk\Doc\Local Authority\30UN,03/10/2022,68.32,Travelodge Chorely PR6 7JB,NAME REDACTED Travelodge Chorley PR6 7JB 3.10.20,Accomodation,124250,COMU-Communities,JBC-Homelessness
South Ribble Council,http://Statistics.Data.gov.uk\Doc\Local Authority\30UN,03/10/2022,68.32,Travelosge Chorley PR6 7JB,NAME REDACTED  Travelodge Chorley PR6 7JB 3.10.2,Accomodation,124250,COMU-Communities,JBC-Homelessness
South Ribble Council,http://Statistics.Data.gov.uk\Doc\Local Authority\30UN,03/10/2022,520.12,Travelodge Chorley PR6 7JB,NAME REDACTED  Travelodge Chorley PR6 7JB 3.10.2,Accomodation,124250,COMU-Communities,JBC-Homelessness
South Ribble Council,http://Statistics.Data.gov.uk\Doc\Local Authority\30UN,05/10/2022,67.30,Travelodge Chorley PR6 7JB,NAME REDACTED Travelodge Chorely PR6 7JB 5.10.20,Accomodation,124250,COMU-Communities,JBC-Homelessness
South Ribble Council,http://Statistics.Data.gov.uk\Doc\Local Authority\30UN,05/10/2022,74.44,Travelodge chorley PR6 7JB,NAME REDACTED  Travelodge Chorley PR6 7JB 5.10.2,Accomodation,124250,COMU-Communities,JBC-Homelessness
South Ribble Council,http://Statistics.Data.gov.uk\Doc\Local Authority\30UN,05/10/2022,76.48,Travelodge Blackburn BB3 0DB,NAME REDACTED  GTravelodge Blackburn BB3 0DB 5.1,Accomodation,124250,COMU-Communities,JBC-Homelessness
South Ribble Council,http://Statistics.Data.gov.uk\Doc\Local Authority\30UN,10/10/2022,83.30,Premier Inn Preston South PR5 6BZ,NAME REDACTED Premier Inn Preston South PR5 6BZ ,Accomodation,124250,COMU-Communities,JBC-Homelessness
South Ribble Council,http://Statistics.Data.gov.uk\Doc\Local Authority\30UN,10/10/2022,170.85,Premier Inn Preston South PR5 6BZ,NAME REDACTED Premier Inn Preston South PR5 6BZ ,Accomodation,124050,COMU-Communities,JBC-Homelessness
South Ribble Council,http://Statistics.Data.gov.uk\Doc\Local Authority\30UN,11/10/2022,87.55,Premier Inn Preston South PR5 6BZ,NAME REDACTED Premier Inn Preston South PR5 6BZ ,Accomodation,124250,COMU-Communities,JBC-Homelessness
South Ribble Council,http://Statistics.Data.gov.uk\Doc\Local Authority\30UN,11/10/2022,97.00,Holiday Inn Express Preston South PR58AA,NAME REDACTED Holiday Inn Express Preston South ,Accomodation,124050,COMU-Communities,JBC-Homelessness
South Ribble Council,http://Statistics.Data.gov.uk\Doc\Local Authority\30UN,11/10/2022,97.00,Holiday Inn Express Preston South PR58AA,NAME REDACTED Holiday Inn Express Preston South ,Accomodation,124250,COMU-Communities,JBC-Homelessness
South Ribble Council,http://Statistics.Data.gov.uk\Doc\Local Authority\30UN,11/10/2022,107.08,Travelodge Preston Chorley PR6 7JB,NAME REDACTED Travelodge Preston Chorley PR6 7JB,Accomodation,124250,COMU-Communities,JBC-Homelessness
South Ribble Council,http://Statistics.Data.gov.uk\Doc\Local Authority\30UN,11/10/2022,530.00,ibis Preston North PR3 5JE,NAME REDACTED ibis Preston North PR3 5JE 11.10.2,Accomodation,124050,COMU-Communities,JBC-Homelessness
South Ribble Council,http://Statistics.Data.gov.uk\Doc\Local Authority\30UN,11/10/2022,545.50,Premier Inn Preston Central PR1 2AB,NAME REDACTED Premier Inn Preston Central PR1 2A,Accomodation,124050,COMU-Communities,JBC-Homelessness
South Ribble Council,http://Statistics.Data.gov.uk\Doc\Local Authority\30UN,12/10/2022,81.60,Premier Inn Preston South PR5 6BZ,NAME REDACTED Premier Inn Preston South PR5 6BZ ,Accomodation,124250,COMU-Communities,JBC-Homelessness
South Ribble Council,http://Statistics.Data.gov.uk\Doc\Local Authority\30UN,12/10/2022,81.60,Premier Inn Preston South PR5 6BZ,NAME REDACTED Premier Inn Preston South PR5 6BZ ,Accomodation,124250,COMU-Communities,JBC-Homelessness
South Ribble Council,http://Statistics.Data.gov.uk\Doc\Local Authority\30UN,12/10/2022,95.86,Travelodge Preston Chorley PR6 7JB,NAME REDACTED Travelodge Preston Chorley PR6 7JB,Accomodation,124250,COMU-Communities,JBC-Homelessness
South Ribble Council,http://Statistics.Data.gov.uk\Doc\Local Authority\30UN,13/10/2022,20.00,Avacab Leyland Taxis,Avacab Leyland Taxis transportation for homeless client to attend a property viewing on 13.10.22,Accomodation,124250,COMU-Communities,JBC-Homelessness
South Ribble Council,http://Statistics.Data.gov.uk\Doc\Local Authority\30UN,13/10/2022,95.00,Holiday Inn Express Preston South,NAME REDACTED Holiday Inn Express Preston South ,Accomodation,124050,COMU-Communities,JBC-Homelessness
South Ribble Council,http://Statistics.Data.gov.uk\Doc\Local Authority\30UN,13/10/2022,155.55,Premier Inn Preston South PR5 6BZ,NAME REDACTED Premier Inn Preston South PR5 6BZ ,Accomodation,124050,COMU-Communities,JBC-Homelessness
South Ribble Council,http://Statistics.Data.gov.uk\Doc\Local Authority\30UN,13/10/2022,296.77,Travelodge Preston Chorley PR6 7JB,NAME REDACTED Travelodge Preston Chorley PR6 7JB,Accomodation,124050,COMU-Communities,JBC-Homelessness
South Ribble Council,http://Statistics.Data.gov.uk\Doc\Local Authority\30UN,13/10/2022,571.12,Travelodge Preston Chorley PR6 7JB,NAME REDACTED  Traveldoge Preston Chorley PR6 7J,Accomodation,124050,COMU-Communities,JBC-Homelessness
South Ribble Council,http://Statistics.Data.gov.uk\Doc\Local Authority\30UN,14/10/2022,213.14,Travelodge Preston Chorley PR6 7JB,NAME REDACTED Travelodge Preston Chorley PR6 7JB,Accomodation,124250,COMU-Communities,JBC-Homelessness
South Ribble Council,http://Statistics.Data.gov.uk\Doc\Local Authority\30UN,19/10/2022,666.39,Holiday Inn Express Preston South PR58AA,NAME REDACTED Holiday Inn Express Preston South ,Accomodation,124050,COMU-Communities,JBC-Homelessness
South Ribble Council,http://Statistics.Data.gov.uk\Doc\Local Authority\30UN,28/10/2022,244.76,Travelodge Chorley PR6 7JB,NAME REDACTED Travelodge Chorley PR6 7JB 28.10.2,Accomodation,124250,COMU-Communities,JBC-Homelessness
South Ribble Council,http://Statistics.Data.gov.uk\Doc\Local Authority\30UN,28/10/2022,244.76,Travelodge Chorley PR6 7JB,NAME REDACTED Travelodge Chorley PR6 7JB 28.10.2,Accomodation,124250,COMU-Communities,JBC-Homelessness
South Ribble Council,http://Statistics.Data.gov.uk\Doc\Local Authority\30UN,07/11/2022,17.01,Travelodge Blackburn M65,Corporate Card Fee for transaction at Travelodge Blackburn M65 on 07.11.22,Accomodation,124050,COMU-Communities,JBC-Homelessness
South Ribble Council,http://Statistics.Data.gov.uk\Doc\Local Authority\30UN,07/11/2022,58.65,Premier Inn Preston South PR5 6BZ,NAME REDACTED Premier Inn Preston South PR5 6BZ ,Accomodation,124250,COMU-Communities,JBC-Homelessness
South Ribble Council,http://Statistics.Data.gov.uk\Doc\Local Authority\30UN,07/11/2022,60.00,Travelodge Preston Chorley PR6 7JB,surcharge for NAME REDACTED Travelodge Preston Chorley PR6 7JB SR,Accomodation,124050,COMU-Communities,JBC-Homelessness
South Ribble Council,http://Statistics.Data.gov.uk\Doc\Local Authority\30UN,07/11/2022,380.93,Travelodge Blackburn M65,NAME REDACTED Travelodge Blackburn M65 08.11.22 ,Accomodation,124250,COMU-Communities,JBC-Homelessness
South Ribble Council,http://Statistics.Data.gov.uk\Doc\Local Authority\30UN,07/11/2022,487.28,Travelodge Blackburn M65,NAME REDACTED Travelodge Blackburn M65 08.11.22 ,Accomodation,124250,COMU-Communities,JBC-Homelessness
South Ribble Council,http://Statistics.Data.gov.uk\Doc\Local Authority\30UN,08/11/2022,47.92,Travelodge Lytham St Annes FY8 1LP,NAME REDACTED Travelodge Lytham St Annes FY8 1LP,Accomodation,124050,COMU-Communities,JBC-Homelessness
South Ribble Council,http://Statistics.Data.gov.uk\Doc\Local Authority\30UN,08/11/2022,50.99,Travelodge Lytham St Annes FY8 1LP,NAME REDACTED Travelodge Lytham St Annes FY8 1LP,Accomodation,124050,COMU-Communities,JBC-Homelessness
South Ribble Council,http://Statistics.Data.gov.uk\Doc\Local Authority\30UN,09/11/2022,119.85,Premier Inn Preston Central Fox Street P,NAME REDACTED Premier Inn Preston Central Fox St,Court Fees,124250,COMU-Communities,JBC-Homelessness
South Ribble Council,http://Statistics.Data.gov.uk\Doc\Local Authority\30UN,10/11/2022,61.20,Premier Inn Preston Central Fox Street P,NAME REDACTED Premier Inn Preston Central Fox St,Accomodation,124250,COMU-Communities,JBC-Homelessness
South Ribble Council,http://Statistics.Data.gov.uk\Doc\Local Authority\30UN,11/11/2022,193.80,Premier Inn Preston South PR5 6BZ,NAME REDACTED Premier Inn Preston South PR5 6BZ ,Accomodation,124250,COMU-Communities,JBC-Homelessness
South Ribble Council,http://Statistics.Data.gov.uk\Doc\Local Authority\30UN,14/11/2022,18.00,Avacab Leyland Taxis PR26 7QR,NAME REDACTED taxi transportation from hotel to ,Travel,124250,COMU-Communities,JBC-Homelessness
South Ribble Council,http://Statistics.Data.gov.uk\Doc\Local Authority\30UN,14/11/2022,56.95,Premier Inn Preston Central PR1 2AB,NAME REDACTED Premier Inn Preston Central PR1 2A,Accomodation,124250,COMU-Communities,JBC-Homelessness
South Ribble Council,http://Statistics.Data.gov.uk\Doc\Local Authority\30UN,14/11/2022,91.80,Premier Inn Preston South PR5 6BZ,NAME REDACTED Premier Inn Preston South PR5 6BZ ,Accomodation,124250,COMU-Communities,JBC-Homelessness
South Ribble Council,http://Statistics.Data.gov.uk\Doc\Local Authority\30UN,16/11/2022,90.10,Premier Inn Preston Central PR1 2AB,NAME REDACTED Premier Inn Preston Central PR1 2A,Accomodation,124250,COMU-Communities,JBC-Homelessness
South Ribble Council,http://Statistics.Data.gov.uk\Doc\Local Authority\30UN,16/11/2022,567.00,Premier Inn Preston Central PR1 2AB,NAME REDACTED Premier Inn Preston Central PR1 2A,Accomodation,124250,COMU-Communities,JBC-Homelessness
South Ribble Council,http://Statistics.Data.gov.uk\Doc\Local Authority\30UN,21/11/2022,145.35,Premier Inn Preston Central PR1 2AB,NAME REDACTED Premier Inn Preston Central PR1 2A,Accomodation,124050,COMU-Communities,JBC-Homelessness
South Ribble Council,http://Statistics.Data.gov.uk\Doc\Local Authority\30UN,22/11/2022,76.50,Premier Inn Bolton Stadium Arena,NAME REDACTED Premier Inn Bolton Stadium Arena 2,Accomodation,124250,COMU-Communities,JBC-Homelessness
South Ribble Council,http://Statistics.Data.gov.uk\Doc\Local Authority\30UN,23/11/2022,70.55,Premier Inn Preston Central Fox Street P,NAME REDACTED Premier Inn Preston Central Fox St,Accomodation,124250,COMU-Communities,JBC-Homelessness
South Ribble Council,http://Statistics.Data.gov.uk\Doc\Local Authority\30UN,23/11/2022,73.95,Premier Inn Preston South PR5 6BZ,NAME REDACTED Premier Inn Preston South PR5 6BZ ,Accomodation,124250,COMU-Communities,JBC-Homelessness
South Ribble Council,http://Statistics.Data.gov.uk\Doc\Local Authority\30UN,23/11/2022,330.00,ibis Preston North,NAME REDACTED ibis Preston North 23.11.22 - 28.1,Accomodation,124050,COMU-Communities,JBC-Homelessness
South Ribble Council,http://Statistics.Data.gov.uk\Doc\Local Authority\30UN,23/11/2022,641.00,Holiday Inn Express Preston South,NAME REDACTED Holiday Inn Express Preston South ,Accomodation,124050,COMU-Communities,JBC-Homelessness
South Ribble Council,http://Statistics.Data.gov.uk\Doc\Local Authority\30UN,23/11/2022,641.00,Holiday Inn Express Preston South,NAME REDACTED Holiday Inn Express Preston South ,Accomodation,124050,COMU-Communities,JBC-Homelessness
South Ribble Council,http://Statistics.Data.gov.uk\Doc\Local Authority\30UN,24/11/2022,101.98,Travelodge Preston Chorley PR6 7JB,NAME REDACTED Travelodge Preston Chorley PR6 7JB,Accomodation,124250,COMU-Communities,JBC-Homelessness
South Ribble Council,http://Statistics.Data.gov.uk\Doc\Local Authority\30UN,25/11/2022,123.38,Travelodge Preston Chorley PR6 7JB,NAME REDACTED Travelodge Preston Chorley PR6 7JB,Accomodation,124250,COMU-Communities,JBC-Homelessness
South Ribble Council,http://Statistics.Data.gov.uk\Doc\Local Authority\30UN,25/11/2022,204.85,Premier Inn Preston South PR5 6BZ,NAME REDACTED Premier Inn Preston South PR5 6BZ ,Accomodation,124250,COMU-Communities,JBC-Homelessness
South Ribble Council,http://Statistics.Data.gov.uk\Doc\Local Authority\30UN,25/11/2022,253.00,Holiday Inn Express Preston South PR5 8A,NAME REDACTED Holiday Inn Express Preston South ,Accomodation,124250,COMU-Communities,JBC-Homelessness
South Ribble Council,http://Statistics.Data.gov.uk\Doc\Local Authority\30UN,25/11/2022,488.00,Holiday Inn Express Preston South,NAME REDACTED Holiday Inn Express Preston South ,Accomodation,124050,COMU-Communities,JBC-Homelessness
South Ribble Council,http://Statistics.Data.gov.uk\Doc\Local Authority\30UN,28/11/2022,56.08,Travelodge Preston Chorley PR6 7JB,NAME REDACTED Travelodge Preston Chorley PR6 7JB,Accomodation,124250,COMU-Communities,JBC-Homelessness
South Ribble Council,http://Statistics.Data.gov.uk\Doc\Local Authority\30UN,28/11/2022,62.05,Premier Inn Preston South Craven Drive P,NAME REDACTED Premier Inn Preston South Craven D,Accomodation,124250,COMU-Communities,JBC-Homelessness
South Ribble Council,http://Statistics.Data.gov.uk\Doc\Local Authority\30UN,28/11/2022,178.50,Premier Inn Preston East Bluebell Way PR,NAME REDACTED Premier Inn Preston East Bluebell ,Accomodation,124050,COMU-Communities,JBC-Homelessness
South Ribble Council,http://Statistics.Data.gov.uk\Doc\Local Authority\30UN,28/11/2022,549.00,Premier Inn Bolton West BL6 4BA,NAME REDACTED Premier Inn Bolton West BL6 4BA 29,Accomodation,124050,COMU-Communities,JBC-Homelessness
South Ribble Council,http://Statistics.Data.gov.uk\Doc\Local Authority\30UN,29/11/2022,56.08,Travelodge Preston Chorley PR6 7JB,NAME REDACTED Travelodge Preston Chorley PR6 7JB,Accomodation,124250,COMU-Communities,JBC-Homelessness
South Ribble Council,http://Statistics.Data.gov.uk\Doc\Local Authority\30UN,29/11/2022,77.35,Premier Inn Preston South (Craven Drive),NAME REDACTED Premier Inn Preston South (Craven ,Accomodation,124250,COMU-Communities,JBC-Homelessness
South Ribble Council,http://Statistics.Data.gov.uk\Doc\Local Authority\30UN,29/11/2022,105.00,Holiday Inn Express Preston South PR5 8A,NAME REDACTED Holiday Inn Express Preston South ,Accomodation,124050,COMU-Communities,JBC-Homelessness
South Ribble Council,http://Statistics.Data.gov.uk\Doc\Local Authority\30UN,29/11/2022,488.00,Premier Inn Preston South (Craven Drive),NAME REDACTED Premier Inn Preston South (Craven ,Accomodation,124050,COMU-Communities,JBC-Homelessness
South Ribble Council,http://Statistics.Data.gov.uk\Doc\Local Authority\30UN,30/11/2022,-201.50,Premier Inn Preston South (Craven Drive),[cancellation/full refund] NG Premier Inn Preston South (Craven Drive) PR5 6BZ 03.12.22 - 06.12.22 NAME REDACTED� COUNTER PAYMENT (payment received by SRBC to the exact same value as original booking made by SRBC) � AUDIT PURPOSES ONLY � FULL REFUND ISSUED BY HOTEL,Accomodation,124050,COMU-Communities,JBC-Homelessness
South Ribble Council,http://Statistics.Data.gov.uk\Doc\Local Authority\30UN,30/11/2022,100.00,Holiday Inn Express Preston South PR5 8A,NAME REDACTED Holiday Inn Express Preston South ,Accomodation,124050,COMU-Communities,JBC-Homelessness
South Ribble Council,http://Statistics.Data.gov.uk\Doc\Local Authority\30UN,30/11/2022,201.50,Premier Inn Preston South (Craven Drive),NAME REDACTED Premier Inn Preston South (Craven ,Accomodation,124050,COMU-Communities,JBC-Homelessness
South Ribble Council,http://Statistics.Data.gov.uk\Doc\Local Authority\30UN,30/11/2022,506.50,Premier Inn Preston South (Craven Drive),NAME REDACTED Premier Inn Preston South (Craven ,Accomodation,124050,COMU-Communities,JBC-Homelessness
South Ribble Council,http://Statistics.Data.gov.uk\Doc\Local Authority\30UN,30/11/2022,595.00,Holiday Inn Express Preston South PR58AA,NAME REDACTED Holiday Inn Express Preston South ,Accomodation,124050,COMU-Communities,JBC-Homelessness
South Ribble Council,http://Statistics.Data.gov.uk\Doc\Local Authority\30UN,13/12/2022,665.00,Holiday Inn Express Preston South,NAME REDACTED Holiday Inn Express Preston South ,Accomodation,124050,COMU-Communities,JBC-Homelessness
South Ribble Council,http://Statistics.Data.gov.uk\Doc\Local Authority\30UN,19/12/2022,287.00,Premier Inn Bolton West BL6 4BA,NAME REDACTED Premier Inn Bolton West BL6 4BA 28,Accomodation,124050,COMU-Communities,JBC-Homelessness
South Ribble Council,http://Statistics.Data.gov.uk\Doc\Local Authority\30UN,19/12/2022,527.00,Premier Inn Bolton West BL6 4BA,NAME REDACTED Premier Inn Bolton West BL6 4BA 19,Accomodation,124050,COMU-Communities,JBC-Homelessness
South Ribble Council,http://Statistics.Data.gov.uk\Doc\Local Authority\30UN,21/12/2022,73.97,AMZNMktplace,Amazon invoice for 2 x Oypla Heavy Duty Outdoor Folding Camping Bed Portable with Carry Bag - 21.12.22 - SR card,Accomodation,124250,COMU-Communities,JBC-Homelessness
South Ribble Council,http://Statistics.Data.gov.uk\Doc\Local Authority\30UN,03/10/2022,527.00,IBIS Preston North PR3 5JE,NAME REDACTED IBIS Preston North PR3 5JE 4.10.20,Accomodation,124250,COMU-Communities,JBC-Homelessness
South Ribble Council,http://Statistics.Data.gov.uk\Doc\Local Authority\30UN,14/10/2022,72.40,Travelodge Preston Chorley PR6 7JB,NAME REDACTED Travelodge Preston Chorley PR6 7JB,Accomodation,124050,COMU-Communities,JBC-Homelessness
South Ribble Council,http://Statistics.Data.gov.uk\Doc\Local Authority\30UN,14/10/2022,93.82,Travelodge Preston Chorley PR6 7JB,NAME REDACTED Travelodge Preston Chorley PR6 7JB,Accomodation,124050,COMU-Communities,JBC-Homelessness
South Ribble Council,http://Statistics.Data.gov.uk\Doc\Local Authority\30UN,14/10/2022,153.99,Travelodge Preston Chorley PR6 7JB,NAME REDACTED Travelodge Preston Chorley PR6 7JB,Accomodation,124050,COMU-Communities,JBC-Homelessness
South Ribble Council,http://Statistics.Data.gov.uk\Doc\Local Authority\30UN,14/10/2022,237.62,Travelodge Preston Chorley PR6 7JB,NAME REDACTED Travelodge Preston Chorley PR6 7JB,Accomodation,124250,COMU-Communities,JBC-Homelessness
South Ribble Council,http://Statistics.Data.gov.uk\Doc\Local Authority\30UN,14/10/2022,237.62,Travelodge Preston Chorley PR6 7JB,NAME REDACTED Travelodge Preston Chorley PR6 7JB,Accomodation,124250,COMU-Communities,JBC-Homelessness
South Ribble Council,http://Statistics.Data.gov.uk\Doc\Local Authority\30UN,14/10/2022,282.49,Travelodge Preston Chorley PR6 7JB,NAME REDACTED  Travelodge Preston Chorley PR6 7J,Accomodation,124050,COMU-Communities,JBC-Homelessness
South Ribble Council,http://Statistics.Data.gov.uk\Doc\Local Authority\30UN,17/10/2022,88.21,Travelodge Preston Chorley PR6 7JB,NAME REDACTED Travelodge Preston Chorley PR6 7JB,Accomodation,124250,COMU-Communities,JBC-Homelessness
South Ribble Council,http://Statistics.Data.gov.uk\Doc\Local Authority\30UN,17/10/2022,158.95,Premier Inn Preston Central,NAME REDACTED Premier Inn Preston Central 17.10.,Accomodation,124050,COMU-Communities,JBC-Homelessness
South Ribble Council,http://Statistics.Data.gov.uk\Doc\Local Authority\30UN,18/10/2022,107.08,Travelodge Preston Chorley PR6 7JB,NAME REDACTED Travelodge Preston Chorley PR6 7JB,Accomodation,124250,COMU-Communities,JBC-Homelessness
South Ribble Council,http://Statistics.Data.gov.uk\Doc\Local Authority\30UN,08/11/2022,124.95,Premier Inn Preston Central Fox Street,NAME REDACTED Premier Inn Preston Central Fox St,Accomodation,124250,COMU-Communities,JBC-Homelessness
South Ribble Council,http://Statistics.Data.gov.uk\Doc\Local Authority\30UN,11/11/2022,240.00,ibis Preston North PR3 5JE,NAME REDACTED ibis Preston North PR3 5JE 11.11.2,Accomodation,124050,COMU-Communities,JBC-Homelessness
South Ribble Council,http://Statistics.Data.gov.uk\Doc\Local Authority\30UN,15/11/2022,465.00,ibis Preston North PR3 5JE,NAME REDACTED ibis Preston North PR3 5JE 15.11.2,Accomodation,124250,COMU-Communities,JBC-Homelessness
South Ribble Council,http://Statistics.Data.gov.uk\Doc\Local Authority\30UN,17/11/2022,230.35,Premier Inn Preston Central PR1 2AB,NAME REDACTED Premier Inn Preston Central PR1 2A,Accomodation,124250,COMU-Communities,JBC-Homelessness
South Ribble Council,http://Statistics.Data.gov.uk\Doc\Local Authority\30UN,18/11/2022,199.88,Travelodge Chorley PR6 7JB,NAME REDACTED Travelodge Chorley PR6 7JB 18.11.2,Accomodation,124250,COMU-Communities,JBC-Homelessness
South Ribble Council,http://Statistics.Data.gov.uk\Doc\Local Authority\30UN,21/11/2022,62.05,Premier Inn Preston Central PR1 2AB,NAME REDACTED Premier Inn Preston Central PR1 2A,Accomodation,124250,COMU-Communities,JBC-Homelessness
South Ribble Council,http://Statistics.Data.gov.uk\Doc\Local Authority\30UN,21/11/2022,107.08,Travelodge Chorley PR6 7JB,NAME REDACTED Travelodge Chorley PR6 7JB 21.11.2,Accomodation,124250,COMU-Communities,JBC-Homelessness
South Ribble Council,http://Statistics.Data.gov.uk\Doc\Local Authority\30UN,21/11/2022,568.00,Premier Inn Preston East PR2 5PZ,NAME REDACTED Premier Inn Preston East PR2 5PZ 2,Accomodation,124050,COMU-Communities,JBC-Homelessness
South Ribble Council,http://Statistics.Data.gov.uk\Doc\Local Authority\30UN,22/11/2022,408.94,Travelodge Bolton Central River Street,NAME REDACTED Travelodge Bolton Central River St,Accomodation,124050,COMU-Communities,JBC-Homelessness
South Ribble Council,http://Statistics.Data.gov.uk\Doc\Local Authority\30UN,22/11/2022,475.00,ibis Preston North PR3 5JE,NAME REDACTED ibis Preston North PR3 5JE 22.11.2,Accomodation,124050,COMU-Communities,JBC-Homelessness
South Ribble Council,http://Statistics.Data.gov.uk\Doc\Local Authority\30UN,24/11/2022,61.20,Premier Inn Preston South Craven Drive P,NAME REDACTED Premier Inn Preston South Craven D,Accomodation,124250,COMU-Communities,JBC-Homelessness
South Ribble Council,http://Statistics.Data.gov.uk\Doc\Local Authority\30UN,29/11/2022,593.00,ibis Preston North PR3 5JE,NAME REDACTED ibis Preston North PR3 5JE 29.11.2,Accomodation,124050,COMU-Communities,JBC-Homelessness
South Ribble Council,http://Statistics.Data.gov.uk\Doc\Local Authority\30UN,09/12/2022,204.00,Premier Inn Preston South PR6 6BZ,NAME REDACTED Premier Inn Preston South PR5 6BZ ,Accomodation,124250,COMU-Communities,JBC-Homelessness
South Ribble Council,http://Statistics.Data.gov.uk\Doc\Local Authority\30UN,15/10/2022,153.99,Travelodge,Hotel Accommodation for NAME REDACTED - out of hours request Invoice Number WB96342865,Accomodation,124050,CDIG-Customer and Digital,JCD-Parks and Neighbourhoods
South Ribble Council,http://Statistics.Data.gov.uk\Doc\Local Authority\30UN,28/10/2022,292.50,DVLA,Road Tax October 2022  VIN REDACTED,Online Purchase,112100,CDIG-Customer and Digital,JCE-Transport
South Ribble Council,http://Statistics.Data.gov.uk\Doc\Local Authority\30UN,28/10/2022,292.50,DVLA,Road Tax October 2022 VIN REDACTED,Online Purchase,112100,CDIG-Customer and Digital,JCE-Transport
South Ribble Council,http://Statistics.Data.gov.uk\Doc\Local Authority\30UN,15/11/2022,10.00,DVLA,Deficit of 10.00 on paid for VIN REDACTED,Road Tax,172840,CDIG-Customer and Digital,JCE-Transport
South Ribble Council,http://Statistics.Data.gov.uk\Doc\Local Authority\30UN,15/11/2022,266.20,PortalPlanQuest Limited,Planning Application PP-1169214v1 Street Record Worden Park Transaction 16684417586589468 NAME REDACTED,Online Purchase,174300,CDIG-Customer and Digital,JCD-Parks and Neighbourhoods
South Ribble Council,http://Statistics.Data.gov.uk\Doc\Local Authority\30UN,15/11/2022,292.50,DVLA,Road Tax November 2022 VIN REDACTED,Online Purchase,172400,CDIG-Customer and Digital,JCE-Transport
South Ribble Council,http://Statistics.Data.gov.uk\Doc\Local Authority\30UN,15/11/2022,292.50,DVLA,Road Tax November 2022 VIN REDACTED,Online Purchase,172400,CDIG-Customer and Digital,JCE-Transport
South Ribble Council,http://Statistics.Data.gov.uk\Doc\Local Authority\30UN,15/11/2022,292.50,DVLA,Road tax November 2022 VIN REDACTED,Online Purchase,172840,CDIG-Customer and Digital,JCE-Transport
South Ribble Council,http://Statistics.Data.gov.uk\Doc\Local Authority\30UN,14/12/2022,93.55,Costco,Pastries for the Xmas breakfast with NAME REDACTED,Store Purchase,170100,CDIG-Customer and Digital,JCD-Parks and Neighbourhoods
South Ribble Council,http://Statistics.Data.gov.uk\Doc\Local Authority\30UN,21/10/2022,292.50,DVLA,Road Tax Oct 2022 - VIN REDACTED,Online Purchase,173500,CDIG-Customer and Digital,JCE-Transport
South Ribble Council,http://Statistics.Data.gov.uk\Doc\Local Authority\30UN,21/10/2022,292.50,DVLA,Road Tax Oct 22 - VIN REDACTED,Online Purchase,171600,CDIG-Customer and Digital,JCE-Transport
South Ribble Council,http://Statistics.Data.gov.uk\Doc\Local Authority\30UN,02/12/2022,102.50,DVSA,MOT booking slots x 50,Online Purchase,172600,CDIG-Customer and Digital,JCE-Transport
South Ribble Council,http://Statistics.Data.gov.uk\Doc\Local Authority\30UN,16/12/2022,4.45,POST OFFICE LTD,Postage for Brake Test Meter calibration (Bowmonk),Store Purchase,172600,CDIG-Customer and Digital,JCE-Transport
South Ribble Council,http://Statistics.Data.gov.uk\Doc\Local Authority\30UN,16/12/2022,167.50,DVLA,Road Tax VIN REDACTED - Dec 22,Online Purchase,172400,CDIG-Customer and Digital,JCE-Transport
South Ribble Council,http://Statistics.Data.gov.uk\Doc\Local Authority\30UN,16/12/2022,302.50,DVLA,Road Tax VIN REDACTED - Dec 22,Online Purchase,172810,CDIG-Customer and Digital,JCE-Transport
South Ribble Council,http://Statistics.Data.gov.uk\Doc\Local Authority\30UN,03/10/2022,18.00,Timpsons,Keys for noticeboards,Store Purchase,114800,COMU-Communities,JBA-Community Involvement
South Ribble Council,http://Statistics.Data.gov.uk\Doc\Local Authority\30UN,04/10/2022,38.88,Tesco,Pasta cooking clubs,Store Purchase,113110,COMU-Communities,JBA-Community Involvement
South Ribble Council,http://Statistics.Data.gov.uk\Doc\Local Authority\30UN,04/10/2022,100.00,Tesco,Tesco voucher for pasta cooking clubs,Store Purchase,113110,COMU-Communities,JBA-Community Involvement
South Ribble Council,http://Statistics.Data.gov.uk\Doc\Local Authority\30UN,10/10/2022,8.85,Tesco,Youth Council items,Store Purchase,144000,COMU-Communities,JBA-Community Involvement
South Ribble Council,http://Statistics.Data.gov.uk\Doc\Local Authority\30UN,12/10/2022,200.00,Royal British Legion Industries,Tommy Statue,Online Purchase,114801,COMU-Communities,JBA-Community Involvement
South Ribble Council,http://Statistics.Data.gov.uk\Doc\Local Authority\30UN,13/10/2022,550.55,MandJ Distributors,Pop up bike shop packs,Online Purchase,114801,COMU-Communities,JBA-Community Involvement
South Ribble Council,http://Statistics.Data.gov.uk\Doc\Local Authority\30UN,24/10/2022,34.00,Aldi,HAF and food,Store Purchase,114850,COMU-Communities,JBA-Community Involvement
South Ribble Council,http://Statistics.Data.gov.uk\Doc\Local Authority\30UN,24/10/2022,66.28,Travelodge,Emergency Housing NAME REDACTED,Online Purchase,124250,COMU-Communities,JBA-Community Involvement
South Ribble Council,http://Statistics.Data.gov.uk\Doc\Local Authority\30UN,24/10/2022,66.28,Travelodge,Emergency housing NAME REDACTED,Online Purchase,124250,COMU-Communities,JBA-Community Involvement
South Ribble Council,http://Statistics.Data.gov.uk\Doc\Local Authority\30UN,24/10/2022,71.40,Premier Inn,Emergency housing NAME REDACTED,Online Purchase,124250,COMU-Communities,JBA-Community Involvement
South Ribble Council,http://Statistics.Data.gov.uk\Doc\Local Authority\30UN,24/10/2022,71.40,Premier Inn,Emergency housing NAME REDACTED,Online Purchase,124250,COMU-Communities,JBA-Community Involvement
South Ribble Council,http://Statistics.Data.gov.uk\Doc\Local Authority\30UN,24/10/2022,77.50,Travelodge,Emergency housing NAME REDACTED,Online Purchase,124250,COMU-Communities,JBA-Community Involvement
South Ribble Council,http://Statistics.Data.gov.uk\Doc\Local Authority\30UN,24/10/2022,86.70,Premier Inn,Emergency housing NAME REDACTED,Online Purchase,124250,COMU-Communities,JBA-Community Involvement
South Ribble Council,http://Statistics.Data.gov.uk\Doc\Local Authority\30UN,24/10/2022,100.00,Sainsburys,Vouchers,Store Purchase,144200,COMU-Communities,JBA-Community Involvement
South Ribble Council,http://Statistics.Data.gov.uk\Doc\Local Authority\30UN,24/10/2022,124.98,Aldi,HAF and food,Store Purchase,114850,COMU-Communities,JBA-Community Involvement
South Ribble Council,http://Statistics.Data.gov.uk\Doc\Local Authority\30UN,25/10/2022,14.80,Tesco,Youth Council items,Store Purchase,144000,COMU-Communities,JBA-Community Involvement
South Ribble Council,http://Statistics.Data.gov.uk\Doc\Local Authority\30UN,25/10/2022,53.02,Travelodge,Emergency housing NAME REDACTED,Online Purchase,124250,COMU-Communities,JBA-Community Involvement
South Ribble Council,http://Statistics.Data.gov.uk\Doc\Local Authority\30UN,25/10/2022,107.08,Travelodge,Emergency housing NAME REDACTED,Online Purchase,124250,COMU-Communities,JBA-Community Involvement
South Ribble Council,http://Statistics.Data.gov.uk\Doc\Local Authority\30UN,25/10/2022,107.08,Travelodge,Emergency housing NAME REDACTED,Online Purchase,124250,COMU-Communities,JBA-Community Involvement
South Ribble Council,http://Statistics.Data.gov.uk\Doc\Local Authority\30UN,25/10/2022,107.08,Travelodge,Emergency Housing NAME REDACTED,Online Purchase,124250,COMU-Communities,JBA-Community Involvement
South Ribble Council,http://Statistics.Data.gov.uk\Doc\Local Authority\30UN,25/10/2022,107.08,Travelodge,Emergency housing NAME REDACTED,Online Purchase,124250,COMU-Communities,JBA-Community Involvement
South Ribble Council,http://Statistics.Data.gov.uk\Doc\Local Authority\30UN,25/10/2022,107.08,Travelodge,Emergency housing NAME REDACTED,Online Purchase,124250,COMU-Communities,JBA-Community Involvement
South Ribble Council,http://Statistics.Data.gov.uk\Doc\Local Authority\30UN,25/10/2022,195.81,Travelodge,Emergency housing NAME REDACTED,Online Purchase,124250,COMU-Communities,JBA-Community Involvement
South Ribble Council,http://Statistics.Data.gov.uk\Doc\Local Authority\30UN,25/10/2022,435.00,Hotel Ibis,"Accommodation for NAME REDACTED, for 6 nights",Online Purchase,124250,COMU-Communities,JBA-Community Involvement
South Ribble Council,http://Statistics.Data.gov.uk\Doc\Local Authority\30UN,25/10/2022,537.96,FESTIVE LIGHTS,"x2 Christmas trees, Youth Council and Leyland in Bloom",Online Purchase,114800,COMU-Communities,JBA-Community Involvement
South Ribble Council,http://Statistics.Data.gov.uk\Doc\Local Authority\30UN,25/10/2022,570.00,Hotel Ibis,Accommodation for NAME REDACTED,Online Purchase,124250,COMU-Communities,JBA-Community Involvement
South Ribble Council,http://Statistics.Data.gov.uk\Doc\Local Authority\30UN,26/10/2022,100.00,RBL Trading Ltd,5 wreaths of poppies,Online Purchase,114800,COMU-Communities,JBA-Community Involvement
South Ribble Council,http://Statistics.Data.gov.uk\Doc\Local Authority\30UN,26/10/2022,198.72,Aldi,HAF food,Store Purchase,114850,COMU-Communities,JBA-Community Involvement
South Ribble Council,http://Statistics.Data.gov.uk\Doc\Local Authority\30UN,26/10/2022,238.40,Aldi,HAF food,Store Purchase,114850,COMU-Communities,JBA-Community Involvement
South Ribble Council,http://Statistics.Data.gov.uk\Doc\Local Authority\30UN,26/10/2022,637.29,Holiday Inn,Emergency housing NAME REDACTED 26-31 Oct,Online Purchase,124250,COMU-Communities,JBA-Community Involvement
South Ribble Council,http://Statistics.Data.gov.uk\Doc\Local Authority\30UN,27/10/2022,17.80,Aldi,HAF food,Store Purchase,114850,COMU-Communities,JBA-Community Involvement
South Ribble Council,http://Statistics.Data.gov.uk\Doc\Local Authority\30UN,27/10/2022,53.75,Aldi,HAF food,Store Purchase,114850,COMU-Communities,JBA-Community Involvement
South Ribble Council,http://Statistics.Data.gov.uk\Doc\Local Authority\30UN,28/10/2022,0.02,wix.com,Sports Awards website host and domain name charges Nov 22- Nov 23,Online Purchase,113100,COMU-Communities,JBA-Community Involvement
South Ribble Council,http://Statistics.Data.gov.uk\Doc\Local Authority\30UN,28/10/2022,36.70,wix.com,Sports Awards website host and domain name charges Nov 22-Nov23,Online Purchase,113100,COMU-Communities,JBA-Community Involvement
South Ribble Council,http://Statistics.Data.gov.uk\Doc\Local Authority\30UN,28/10/2022,85.00,Northwest Domestics,Refugee resettlement vacuum,Store Purchase,144200,COMU-Communities,JBA-Community Involvement
South Ribble Council,http://Statistics.Data.gov.uk\Doc\Local Authority\30UN,31/10/2022,18.00,Morrisons,Equipment for PASTA club,Store Purchase,114820,COMU-Communities,JBA-Community Involvement
South Ribble Council,http://Statistics.Data.gov.uk\Doc\Local Authority\30UN,31/10/2022,24.69,The Range,Equipment for PASTA club,Store Purchase,114820,COMU-Communities,JBA-Community Involvement
South Ribble Council,http://Statistics.Data.gov.uk\Doc\Local Authority\30UN,31/10/2022,57.91,The Range,Refugee resettlement,Store Purchase,144200,COMU-Communities,JBA-Community Involvement
South Ribble Council,http://Statistics.Data.gov.uk\Doc\Local Authority\30UN,31/10/2022,100.00,Tesco,Items and vouchers for PASTA Club,Store Purchase,114820,COMU-Communities,JBA-Community Involvement
South Ribble Council,http://Statistics.Data.gov.uk\Doc\Local Authority\30UN,31/10/2022,123.94,The Range,Refugee Resettlement,Store Purchase,144200,COMU-Communities,JBA-Community Involvement
South Ribble Council,http://Statistics.Data.gov.uk\Doc\Local Authority\30UN,01/11/2022,6.99,Tesco,Youth Council items,Store Purchase,144000,COMU-Communities,JBA-Community Involvement
South Ribble Council,http://Statistics.Data.gov.uk\Doc\Local Authority\30UN,01/11/2022,20.50,Morrisons,Items and refreshments for a meeting,Store Purchase,114800,COMU-Communities,JBA-Community Involvement
South Ribble Council,http://Statistics.Data.gov.uk\Doc\Local Authority\30UN,01/11/2022,114.83,The Range,Refugee Resettlement,Store Purchase,144200,COMU-Communities,JBA-Community Involvement
South Ribble Council,http://Statistics.Data.gov.uk\Doc\Local Authority\30UN,01/11/2022,310.66,The Range,Refugee Resettlement,Store Purchase,144200,COMU-Communities,JBA-Community Involvement
South Ribble Council,http://Statistics.Data.gov.uk\Doc\Local Authority\30UN,01/11/2022,540.00,ARGOS,Items for refugee resettlement,Online Purchase,144200,COMU-Communities,JBA-Community Involvement
South Ribble Council,http://Statistics.Data.gov.uk\Doc\Local Authority\30UN,03/11/2022,19.52,Berrys,Items as part of set up grant,Store Purchase,114840,COMU-Communities,JBA-Community Involvement
South Ribble Council,http://Statistics.Data.gov.uk\Doc\Local Authority\30UN,03/11/2022,80.00,Sainsburys,Items for refugee resettlement project,Store Purchase,144200,COMU-Communities,JBA-Community Involvement
South Ribble Council,http://Statistics.Data.gov.uk\Doc\Local Authority\30UN,03/11/2022,126.00,BandM,Items for refugee resettlement project,Store Purchase,144200,COMU-Communities,JBA-Community Involvement
South Ribble Council,http://Statistics.Data.gov.uk\Doc\Local Authority\30UN,04/11/2022,48.10,Easy Wash,Items for cleaning for resettlement project,Store Purchase,144200,COMU-Communities,JBA-Community Involvement
South Ribble Council,http://Statistics.Data.gov.uk\Doc\Local Authority\30UN,07/11/2022,4.37,Tesco,Items for the Youth Council,Store Purchase,144000,COMU-Communities,JBA-Community Involvement
South Ribble Council,http://Statistics.Data.gov.uk\Doc\Local Authority\30UN,07/11/2022,6.98,The Range,Items for refugee resettlement project,Store Purchase,144200,COMU-Communities,JBA-Community Involvement
South Ribble Council,http://Statistics.Data.gov.uk\Doc\Local Authority\30UN,07/11/2022,74.00,Morrisons,Items for resettlement refugee project,Store Purchase,144200,COMU-Communities,JBA-Community Involvement
South Ribble Council,http://Statistics.Data.gov.uk\Doc\Local Authority\30UN,07/11/2022,130.68,The Range,Items for resettlement refugee project,Store Purchase,144200,COMU-Communities,JBA-Community Involvement
South Ribble Council,http://Statistics.Data.gov.uk\Doc\Local Authority\30UN,08/11/2022,99.98,Screwfix,Items for resettlement project,Online Purchase,144200,COMU-Communities,JBA-Community Involvement
South Ribble Council,http://Statistics.Data.gov.uk\Doc\Local Authority\30UN,08/11/2022,119.00,ARGOS,Bright Sparks Tablet,Online Purchase,114800,COMU-Communities,JBA-Community Involvement
South Ribble Council,http://Statistics.Data.gov.uk\Doc\Local Authority\30UN,09/11/2022,10.00,Eagle Taxis,Refugee Resettlement,Travel,144200,COMU-Communities,JBA-Community Involvement
South Ribble Council,http://Statistics.Data.gov.uk\Doc\Local Authority\30UN,11/11/2022,20.00,Eagle Taxis,Travel for refugee resettlement,Travel,144200,COMU-Communities,JBA-Community Involvement
South Ribble Council,http://Statistics.Data.gov.uk\Doc\Local Authority\30UN,14/11/2022,6.14,Tesco,Youth Council items,Store Purchase,144000,COMU-Communities,JBA-Community Involvement
South Ribble Council,http://Statistics.Data.gov.uk\Doc\Local Authority\30UN,15/11/2022,3.95,TTS,PASTA scheme cooking equipment,Online Purchase,113100,COMU-Communities,JBA-Community Involvement
South Ribble Council,http://Statistics.Data.gov.uk\Doc\Local Authority\30UN,15/11/2022,99.71,TTS,PASTA scheme cooking equipment,Online Purchase,144200,COMU-Communities,JBA-Community Involvement
South Ribble Council,http://Statistics.Data.gov.uk\Doc\Local Authority\30UN,16/11/2022,5.99,The Range,PASTA club items,Store Purchase,113100,COMU-Communities,JBA-Community Involvement
South Ribble Council,http://Statistics.Data.gov.uk\Doc\Local Authority\30UN,16/11/2022,69.59,Morrisons,Selection boxes and tea and coffee for events over December,Store Purchase,114800,COMU-Communities,JBA-Community Involvement
South Ribble Council,http://Statistics.Data.gov.uk\Doc\Local Authority\30UN,24/11/2022,13.90,Morrisons,Items for Cost of Living Marketplace,Store Purchase,114800,COMU-Communities,JBA-Community Involvement
South Ribble Council,http://Statistics.Data.gov.uk\Doc\Local Authority\30UN,24/11/2022,193.40,The Range,Youth Council Christmas tree decorations,Store Purchase,144000,COMU-Communities,JBA-Community Involvement
South Ribble Council,http://Statistics.Data.gov.uk\Doc\Local Authority\30UN,28/11/2022,0.01,MandJ Distributors,Dr Bike sessions,Online Purchase,113100,COMU-Communities,JBA-Community Involvement
South Ribble Council,http://Statistics.Data.gov.uk\Doc\Local Authority\30UN,28/11/2022,6.43,Lidl,Items for Cost of Living Marketplace,Store Purchase,114800,COMU-Communities,JBA-Community Involvement
South Ribble Council,http://Statistics.Data.gov.uk\Doc\Local Authority\30UN,28/11/2022,8.14,Tesco,Items for Youth Council,Store Purchase,144000,COMU-Communities,JBA-Community Involvement
South Ribble Council,http://Statistics.Data.gov.uk\Doc\Local Authority\30UN,28/11/2022,12.00,MandJ Distributors,Dr Bike supplies,Online Purchase,113100,COMU-Communities,JBA-Community Involvement
South Ribble Council,http://Statistics.Data.gov.uk\Doc\Local Authority\30UN,28/11/2022,33.01,BandM,Items for Cost of Living Marketplace,Store Purchase,114800,COMU-Communities,JBA-Community Involvement
South Ribble Council,http://Statistics.Data.gov.uk\Doc\Local Authority\30UN,28/11/2022,35.60,Lidl,Items for Cost of Living Marketplace,Store Purchase,114800,COMU-Communities,JBA-Community Involvement
South Ribble Council,http://Statistics.Data.gov.uk\Doc\Local Authority\30UN,28/11/2022,75.60,Morrisons,Items for Cost of Living Marketplace,Store Purchase,114800,COMU-Communities,JBA-Community Involvement
South Ribble Council,http://Statistics.Data.gov.uk\Doc\Local Authority\30UN,28/11/2022,171.43,MandJ Distributors,Dr Bike supplies,Online Purchase,113100,COMU-Communities,JBA-Community Involvement
South Ribble Council,http://Statistics.Data.gov.uk\Doc\Local Authority\30UN,28/11/2022,288.48,Lidl,Items for Cost of Living Marketplace,Store Purchase,114800,COMU-Communities,JBA-Community Involvement
South Ribble Council,http://Statistics.Data.gov.uk\Doc\Local Authority\30UN,29/11/2022,-0.50,BandM,Items for community festive events,Store Purchase,114800,COMU-Communities,JBA-Community Involvement
South Ribble Council,http://Statistics.Data.gov.uk\Doc\Local Authority\30UN,29/11/2022,26.75,BandM,Items for community festive events,Store Purchase,114800,COMU-Communities,JBA-Community Involvement
South Ribble Council,http://Statistics.Data.gov.uk\Doc\Local Authority\30UN,29/11/2022,31.73,Tesco,Items for PASTA club,Store Purchase,114820,COMU-Communities,JBA-Community Involvement
South Ribble Council,http://Statistics.Data.gov.uk\Doc\Local Authority\30UN,29/11/2022,148.50,Aldi,Mince pies for community festive events,Store Purchase,114800,COMU-Communities,JBA-Community Involvement
South Ribble Council,http://Statistics.Data.gov.uk\Doc\Local Authority\30UN,01/12/2022,30.67,NISBETS,Community Conversation Supplies,Online Purchase,114804,COMU-Communities,JBA-Community Involvement
South Ribble Council,http://Statistics.Data.gov.uk\Doc\Local Authority\30UN,08/12/2022,100.00,Tesco,Vouchers for PASTA Club,Store Purchase,114820,COMU-Communities,JBA-Community Involvement
South Ribble Council,http://Statistics.Data.gov.uk\Doc\Local Authority\30UN,09/12/2022,16.00,BandM,Items for Leyland Warriors Christmas Party,Store Purchase,114800,COMU-Communities,JBA-Community Involvement
South Ribble Council,http://Statistics.Data.gov.uk\Doc\Local Authority\30UN,12/12/2022,37.00,Tesco,Items for PASTA club,Store Purchase,113100,COMU-Communities,JBA-Community Involvement
South Ribble Council,http://Statistics.Data.gov.uk\Doc\Local Authority\30UN,12/12/2022,51.96,The Range,Items for PASTA club,Store Purchase,113100,COMU-Communities,JBA-Community Involvement
South Ribble Council,http://Statistics.Data.gov.uk\Doc\Local Authority\30UN,12/12/2022,140.00,ARGOS,Items for PASTA club,Store Purchase,113100,COMU-Communities,JBA-Community Involvement
South Ribble Council,http://Statistics.Data.gov.uk\Doc\Local Authority\30UN,13/12/2022,3.00,Tesco,Items for Christmas work,Store Purchase,114800,COMU-Communities,JBA-Community Involvement
South Ribble Council,http://Statistics.Data.gov.uk\Doc\Local Authority\30UN,13/12/2022,7.47,Tesco,Items for Youth Council,Store Purchase,144000,COMU-Communities,JBA-Community Involvement
South Ribble Council,http://Statistics.Data.gov.uk\Doc\Local Authority\30UN,13/12/2022,111.00,The Folly,Meeting lunches with Pendle BC,Store Purchase,114800,COMU-Communities,JBA-Community Involvement
South Ribble Council,http://Statistics.Data.gov.uk\Doc\Local Authority\30UN,14/12/2022,279.41,MET Office,MET Office Data,Online Purchase,113500,COMU-Communities,JBA-Community Involvement
South Ribble Council,http://Statistics.Data.gov.uk\Doc\Local Authority\30UN,20/12/2022,12.98,Home Bargains,Items for HAF cooking session,Store Purchase,114820,COMU-Communities,JBA-Community Involvement
South Ribble Council,http://Statistics.Data.gov.uk\Doc\Local Authority\30UN,18/10/2022,92.51,Meta,Meta Facebook Ads (SR Leisure),Online Purchase,115250,POLY-Policy,JFA-Communications and Visitor
South Ribble Council,http://Statistics.Data.gov.uk\Doc\Local Authority\30UN,18/10/2022,207.49,Meta,Meta Facebook Ads (Chorley wrong card/Chorley Live),Online Purchase,115250,POLY-Policy,JFA-Communications and Visitor
South Ribble Council,http://Statistics.Data.gov.uk\Doc\Local Authority\30UN,25/10/2022,24.54,Meta,Meta FB Ads South Ribble Leisure,Online Purchase,115250,POLY-Policy,JFA-Communications and Visitor
South Ribble Council,http://Statistics.Data.gov.uk\Doc\Local Authority\30UN,22/11/2022,10.00,B&M,Two Plastic Boxes for the Santa`s Express Weekends to hold equipment,Store Purchase,114100,POLY-Policy,JFA-Communications and Visitor
South Ribble Council,http://Statistics.Data.gov.uk\Doc\Local Authority\30UN,25/11/2022,3.56,Meta,Meta Facebook Ads Leyland Light Switch On,Online Purchase,114100,POLY-Policy,JFA-Communications and Visitor
South Ribble Council,http://Statistics.Data.gov.uk\Doc\Local Authority\30UN,25/11/2022,11.24,Meta,Meta Facebook Ads (Chorley Winter Wonderland/wrong spend on card),Online Purchase,115250,POLY-Policy,JFA-Communications and Visitor
South Ribble Council,http://Statistics.Data.gov.uk\Doc\Local Authority\30UN,25/11/2022,62.76,Meta,Meta Facebook Ads (Chorley wrong spend/Chorley travel consultation),Online Purchase,115250,POLY-Policy,JFA-Communications and Visitor
South Ribble Council,http://Statistics.Data.gov.uk\Doc\Local Authority\30UN,25/11/2022,80.33,Meta,Meta Facebook Ads,Online Purchase,115250,POLY-Policy,JFA-Communications and Visitor
South Ribble Council,http://Statistics.Data.gov.uk\Doc\Local Authority\30UN,25/12/2022,48.53,Meta,Facebook Ads SR,Online Purchase,115250,POLY-Policy,JFA-Communications and Visitor
South Ribble Council,http://Statistics.Data.gov.uk\Doc\Local Authority\30UN,25/12/2022,131.48,Meta,Facebook Ads (Chorley ads on wrong card),Online Purchase,115250,POLY-Policy,JFA-Communications and Visitor
South Ribble Council,http://Statistics.Data.gov.uk\Doc\Local Authority\30UN,20/10/2022,300.00,Eventbrite,Training - Practical Accident Investigation,Online Purchase,112100,GOVE-Governance,JDC-Corporate Support
South Ribble Council,http://Statistics.Data.gov.uk\Doc\Local Authority\30UN,26/10/2022,71.38,Travelodge,Accommodation - NAME REDACTED,Accomodation,124250,GOVE-Governance,JDC-Corporate Support
South Ribble Council,http://Statistics.Data.gov.uk\Doc\Local Authority\30UN,26/10/2022,88.72,Travelodge,Accommodation - NAME REDACTED,Accomodation,124250,GOVE-Governance,JDC-Corporate Support
South Ribble Council,http://Statistics.Data.gov.uk\Doc\Local Authority\30UN,26/10/2022,682.00,Holiday Inn,Accommodation - NAME REDACTED,Accomodation,124250,GOVE-Governance,JDC-Corporate Support
South Ribble Council,http://Statistics.Data.gov.uk\Doc\Local Authority\30UN,27/10/2022,88.72,Travelodge,Accommodation - NAME REDACTED,Accomodation,124250,GOVE-Governance,JDC-Corporate Support
South Ribble Council,http://Statistics.Data.gov.uk\Doc\Local Authority\30UN,27/10/2022,92.00,Holiday Inn,Accommodation - NAME REDACTED,Accomodation,124250,GOVE-Governance,JDC-Corporate Support
South Ribble Council,http://Statistics.Data.gov.uk\Doc\Local Authority\30UN,27/10/2022,130.00,Holiday Inn,Accommodation - NAME REDACTED,Accomodation,124250,GOVE-Governance,JDC-Corporate Support
South Ribble Council,http://Statistics.Data.gov.uk\Doc\Local Authority\30UN,27/10/2022,291.67,Travelodge,Accommodation - NAME REDACTED,Accomodation,124250,GOVE-Governance,JDC-Corporate Support
South Ribble Council,http://Statistics.Data.gov.uk\Doc\Local Authority\30UN,31/10/2022,68.32,Travelodge,Accommodation - NAME REDACTED,Accomodation,124250,GOVE-Governance,JDC-Corporate Support
South Ribble Council,http://Statistics.Data.gov.uk\Doc\Local Authority\30UN,07/12/2022,450.96,ALLGOOD,REPLACEMENT KEYS,Store Purchase,113260,GOVE-Governance,JDC-Corporate Support
South Ribble Council,http://Statistics.Data.gov.uk\Doc\Local Authority\30UN,13/12/2022,12.10,RYMAN,CHRISTMAS BAKE OFF ITEMS,Store Purchase,126601,GOVE-Governance,JDC-Corporate Support
South Ribble Council,http://Statistics.Data.gov.uk\Doc\Local Authority\30UN,13/12/2022,71.40,TESCO,CHRISTMAS BAKE OFF ITEMS,Store Purchase,126601,GOVE-Governance,JDC-Corporate Support
South Ribble Council,http://Statistics.Data.gov.uk\Doc\Local Authority\30UN,15/12/2022,612.00,LEISURE JOBS,ONLINE JOB ADVERT,Online Purchase,102000,GOVE-Governance,JDC-Corporate Support
South Ribble Council,http://Statistics.Data.gov.uk\Doc\Local Authority\30UN,09/10/2022,"2,945.50",Microsoft,Microsoft Azure October 22,Online Purchase,133000,CDIG-Customer and Digital,JCC-Information Services
South Ribble Council,http://Statistics.Data.gov.uk\Doc\Local Authority\30UN,11/10/2022,18.00,EE,2 x Top up 9,Online Purchase,133000,CDIG-Customer and Digital,JCC-Information Services
South Ribble Council,http://Statistics.Data.gov.uk\Doc\Local Authority\30UN,23/10/2022,119.09,Amazon,18 x iphone se cases,Online Purchase,133000,CDIG-Customer and Digital,JCC-Information Services
South Ribble Council,http://Statistics.Data.gov.uk\Doc\Local Authority\30UN,24/10/2022,215.82,Zoom Video Communications,ChargeName: Standard Pro Monthly Quantity: 15 UnitPrice: GBP11.99,Online Purchase,133000,CDIG-Customer and Digital,JCC-Information Services
South Ribble Council,http://Statistics.Data.gov.uk\Doc\Local Authority\30UN,09/11/2022,"3,324.80",Microsoft,MIcrosoft Azure November,Online Purchase,133000,CDIG-Customer and Digital,JCC-Information Services
South Ribble Council,http://Statistics.Data.gov.uk\Doc\Local Authority\30UN,11/11/2022,18.00,EE,2 x Top up 9,Online Purchase,133000,CDIG-Customer and Digital,JCC-Information Services
South Ribble Council,http://Statistics.Data.gov.uk\Doc\Local Authority\30UN,24/11/2022,215.82,Zoom Video Communications,Quantity: 15 UnitPrice: GBP11.99,Online Purchase,133000,CDIG-Customer and Digital,JCC-Information Services
South Ribble Council,http://Statistics.Data.gov.uk\Doc\Local Authority\30UN,09/12/2022,"3,006.01",Microsoft,MIcrosoft Azure December 22,Online Purchase,133000,CDIG-Customer and Digital,JCC-Information Services
South Ribble Council,http://Statistics.Data.gov.uk\Doc\Local Authority\30UN,11/12/2022,18.00,EE,2 x 9 Top up,Online Purchase,133000,CDIG-Customer and Digital,JCC-Information Services
South Ribble Council,http://Statistics.Data.gov.uk\Doc\Local Authority\30UN,23/12/2022,68.99,Amazon,T link router,Online Purchase,133000,CDIG-Customer and Digital,JCC-Information Services
South Ribble Council,http://Statistics.Data.gov.uk\Doc\Local Authority\30UN,24/12/2022,215.82,Zoom Video Communications,ChargeName: Standard Pro Monthly Quantity: 15 UnitPrice: GBP11.99,Online Purchase,133000,CDIG-Customer and Digital,JCC-Information Services
South Ribble Council,http://Statistics.Data.gov.uk\Doc\Local Authority\30UN,03/10/2022,506.86,Travelodge Chorley PR6 7JB,NAME REDACTED Travelodge chorley PR6 7JB 4.10.20,Accomodation,124250,COMU-Communities,JBC-Homelessness
South Ribble Council,http://Statistics.Data.gov.uk\Doc\Local Authority\30UN,06/10/2022,66.28,Travelodge Chorley PR6 7JB,NAME REDACTED  Travelodge Chorley PR6 7JB 6.10.2,Accomodation,124250,COMU-Communities,JBC-Homelessness
South Ribble Council,http://Statistics.Data.gov.uk\Doc\Local Authority\30UN,06/10/2022,66.28,Travelodge chorley PR6 7JB,NAME REDACTED Travelodge Chorley PR6 7JB 6.10.20,Accomodation,124250,COMU-Communities,JBC-Homelessness
South Ribble Council,http://Statistics.Data.gov.uk\Doc\Local Authority\30UN,13/10/2022,87.70,Travelodge Preston Chorley PR6 7JB,NAME REDACTED Travelodge Chorley PR6 7JB 13.10.2,Accomodation,124250,COMU-Communities,JBC-Homelessness
South Ribble Council,http://Statistics.Data.gov.uk\Doc\Local Authority\30UN,13/10/2022,87.70,Travelodge Preston Chorley PR6 7JB,NAME REDACTED  Travelodge Preston Chorley PR6 7J,Accomodation,124250,COMU-Communities,JBC-Homelessness
South Ribble Council,http://Statistics.Data.gov.uk\Doc\Local Authority\30UN,13/10/2022,87.70,Travelodge Preston Chorley PR6 7JB,NAME REDACTED Travelodge Preston Chorley PR6 7JB,Accomodation,124250,COMU-Communities,JBC-Homelessness
South Ribble Council,http://Statistics.Data.gov.uk\Doc\Local Authority\30UN,13/10/2022,87.70,Travelodge Preston Chorley PR6 7JB,NAME REDACTED Travelodge Preston Chorley PR6 7JB,Accomodation,124050,COMU-Communities,JBC-Homelessness
South Ribble Council,http://Statistics.Data.gov.uk\Doc\Local Authority\30UN,27/10/2022,248.84,Travelodge Chorley PR6 7JB,NAME REDACTED  Travelodge Chorley PR6 7JB 27.10.,Accomodation,124050,COMU-Communities,JBC-Homelessness
South Ribble Council,http://Statistics.Data.gov.uk\Doc\Local Authority\30UN,27/10/2022,334.51,Travelodge Southport PR8 1RN,NAME REDACTED Travelodge Southport PR8 1RN 27.10,Accomodation,124050,COMU-Communities,JBC-Homelessness
South Ribble Council,http://Statistics.Data.gov.uk\Doc\Local Authority\30UN,03/11/2022,189.67,Travelodge Southport PR8 1RN,NAME REDACTED Travelodge Southport PR8 1RN 04.11,Accomodation,124050,COMU-Communities,JBC-Homelessness
South Ribble Council,http://Statistics.Data.gov.uk\Doc\Local Authority\30UN,03/11/2022,332.35,Premier Inn Preston Central PR1 2AB,NAME REDACTED Premier Inn Preston Central PR1 2A,Accomodation,124050,COMU-Communities,JBC-Homelessness
South Ribble Council,http://Statistics.Data.gov.uk\Doc\Local Authority\30UN,07/11/2022,544.00,Premier Inn Preston Central PR1 2AB,NAME REDACTED Premier Inn Preston Central PR1 2A,Accomodation,124250,COMU-Communities,JBC-Homelessness
South Ribble Council,http://Statistics.Data.gov.uk\Doc\Local Authority\30UN,11/11/2022,193.80,Premier Inn Preston South (Craven Drive),NAME REDACTED Premier Inn Preston South (Craven ,Accomodation,124250,COMU-Communities,JBC-Homelessness
South Ribble Council,http://Statistics.Data.gov.uk\Doc\Local Authority\30UN,14/11/2022,279.40,Travelodge Southport PR8 1RN,NAME REDACTED Travelodge Southport PR8 1RN 15.11,Accomodation,124250,COMU-Communities,JBC-Homelessness
South Ribble Council,http://Statistics.Data.gov.uk\Doc\Local Authority\30UN,14/11/2022,296.65,Premier Inn Preston Central PR1 2AB,NAME REDACTED Premier Inn Preston Central PR1 2A,Accomodation,124250,COMU-Communities,JBC-Homelessness
South Ribble Council,http://Statistics.Data.gov.uk\Doc\Local Authority\30UN,17/11/2022,81.58,Travelodge Preston Chorley PR6 7JB,NAME REDACTED Travelodge Preston Chorley PR6 7JB,Accomodation,124250,COMU-Communities,JBC-Homelessness
South Ribble Council,http://Statistics.Data.gov.uk\Doc\Local Authority\30UN,24/11/2022,61.20,Premier Inn Preston South PR5 6BZ,NAME REDACTED Premier Inn Preston South PR5 6BZ ,Accomodation,124250,COMU-Communities,JBC-Homelessness
South Ribble Council,http://Statistics.Data.gov.uk\Doc\Local Authority\30UN,05/12/2022,-61.20,Premier Inn Preston South PR5 6BZ,refund for the following which was taken twice by mistake - v2 NAME REDACTED Premier Inn Preston South (Craven Drive) PR5 6BZ 05.12.22 - 06.12.22 NAME REDACTED v2 when payment taken twice by mistake,Refund,124250,COMU-Communities,JBC-Homelessness
South Ribble Council,http://Statistics.Data.gov.uk\Doc\Local Authority\30UN,05/12/2022,61.20,Premier Inn Preston South PR5 6BZ,NAME REDACTED DS Premier Inn Preston South (Crav,Accomodation,124250,COMU-Communities,JBC-Homelessness
South Ribble Council,http://Statistics.Data.gov.uk\Doc\Local Authority\30UN,05/12/2022,61.20,Premier Inn Preston South (Craven Drive),NAME REDACTED Premier Inn Preston South (Craven ,Accomodation,124250,COMU-Communities,JBC-Homelessness
South Ribble Council,http://Statistics.Data.gov.uk\Doc\Local Authority\30UN,05/12/2022,513.00,Premier Inn Bolton West BL6 4BA,NAME REDACTED Premier Inn Bolton West BL6 4BA 06,Accomodation,124050,COMU-Communities,JBC-Homelessness
South Ribble Council,http://Statistics.Data.gov.uk\Doc\Local Authority\30UN,13/12/2022,419.90,Premier Inn Bolton West BL6 4BA,NAME REDACTED Premier Inn Bolton West BL6 4BA 13,Accomodation,124050,COMU-Communities,JBC-Homelessness
South Ribble Council,http://Statistics.Data.gov.uk\Doc\Local Authority\30UN,14/12/2022,604.50,Premier Inn Preston Central PR1 2AB,NAME REDACTED Premier Inn Preston Central PR1 2A,Accomodation,124050,COMU-Communities,JBC-Homelessness
South Ribble Council,http://Statistics.Data.gov.uk\Doc\Local Authority\30UN,19/12/2022,52.70,Premier Inn Preston Central PR1 2AB,NAME REDACTED Premier Inn Preston Central PR1 2A,Accomodation,124250,COMU-Communities,JBC-Homelessness
South Ribble Council,http://Statistics.Data.gov.uk\Doc\Local Authority\30UN,19/12/2022,62.05,Premier Inn Preston South,NAME REDACTED Premier Inn Preston South 19.12.22,Accomodation,124250,COMU-Communities,JBC-Homelessness
South Ribble Council,http://Statistics.Data.gov.uk\Doc\Local Authority\30UN,22/12/2022,58.65,Premier Inn Preston South PR5 6BZ,NAME REDACTED Premier Inn Preston South PR5 6BZ ,Accomodation,124250,COMU-Communities,JBC-Homelessness
South Ribble Council,http://Statistics.Data.gov.uk\Doc\Local Authority\30UN,04/10/2022,64.24,Travelodge Preston Chorley PR6 7JB,NAME REDACTED Travelodge Chorley PR6 7JB 04.10.2,Accomodation,124250,COMU-Communities,JBC-Homelessness
South Ribble Council,http://Statistics.Data.gov.uk\Doc\Local Authority\30UN,04/10/2022,77.50,Travelodge Preston Chorley PR6 7JB,NAME REDACTED Travelodge Preston Chorley PR6 7JB,Accomodation,124250,COMU-Communities,JBC-Homelessness
South Ribble Council,http://Statistics.Data.gov.uk\Doc\Local Authority\30UN,07/10/2022,169.28,Travelodge Preston Chorley PR6 7JB,NAME REDACTED Travelodge Preston Chorley PR6 7JB,Accomodation,124250,COMU-Communities,JBC-Homelessness
South Ribble Council,http://Statistics.Data.gov.uk\Doc\Local Authority\30UN,07/10/2022,169.28,Travelodge Preston Chorley PR6 7JB,NAME REDACTED Travelodge Preston Chorley PR6 7JB,Accomodation,124250,COMU-Communities,JBC-Homelessness
South Ribble Council,http://Statistics.Data.gov.uk\Doc\Local Authority\30UN,07/10/2022,194.78,Travelodge Preston Chorley PR6 7JB,NAME REDACTED Travelodge Preston Chorley PR6 7JB,Accomodation,124250,COMU-Communities,JBC-Homelessness
South Ribble Council,http://Statistics.Data.gov.uk\Doc\Local Authority\30UN,10/10/2022,68.32,Travelodge Chorley PR6 7JB,NAME REDACTED Travelodge Chorley PR6 7JB 10.10.2,Accomodation,124250,COMU-Communities,JBC-Homelessness
South Ribble Council,http://Statistics.Data.gov.uk\Doc\Local Authority\30UN,10/10/2022,80.56,Travelodge Chorley PR6 7JB,NAME REDACTED Travelodge Chorley PR6 7JB 10.10.2,Accomodation,124250,COMU-Communities,JBC-Homelessness
South Ribble Council,http://Statistics.Data.gov.uk\Doc\Local Authority\30UN,10/10/2022,83.30,Premier Inn Preston South PR5 6BZ,NAME REDACTED Premier Inn Preston South PR5 6BZ ,Accomodation,124250,COMU-Communities,JBC-Homelessness
South Ribble Council,http://Statistics.Data.gov.uk\Doc\Local Authority\30UN,17/10/2022,53.02,Travelodge Preston Chorley PR6 7JB,NAME REDACTED Travelodge Chorley PR6 7JB 17.10.2,Accomodation,124250,COMU-Communities,JBC-Homelessness
South Ribble Council,http://Statistics.Data.gov.uk\Doc\Local Authority\30UN,31/10/2022,32.62,Travelodge Southport PR8 1RN,NAME REDACTED Travelodge Southport PR8 1RN 31.10,Accomodation,124250,COMU-Communities,JBC-Homelessness
South Ribble Council,http://Statistics.Data.gov.uk\Doc\Local Authority\30UN,31/10/2022,61.20,Premeir Inn Preston Central PR1 2AB,NAME REDACTED Premeir Inn Preston Central PR1 2A,Accomodation,124250,COMU-Communities,JBC-Homelessness
South Ribble Council,http://Statistics.Data.gov.uk\Doc\Local Authority\30UN,31/10/2022,63.75,Premier Inn Preston South (Craven Drive),NAME REDACTED Premier Inn Preston South (Craven ,Accomodation,124250,COMU-Communities,JBC-Homelessness
South Ribble Council,http://Statistics.Data.gov.uk\Doc\Local Authority\30UN,31/10/2022,69.34,Travelodge Chorley PR6 7JB,NAME REDACTED Travelodge Chorley PR6 7JB 31.10.2,Accomodation,124250,COMU-Communities,JBC-Homelessness
South Ribble Council,http://Statistics.Data.gov.uk\Doc\Local Authority\30UN,31/10/2022,69.34,Travelodge Chorley PR6 7JB,NAME REDACTED Travelodge Chorley PR6 7JB 31.10.2,Accomodation,124250,COMU-Communities,JBC-Homelessness
South Ribble Council,http://Statistics.Data.gov.uk\Doc\Local Authority\30UN,31/10/2022,69.34,Travelodge Chorley PR6 7JB,NAME REDACTED Travelodge Chorley PR6 7JB 31.10.2,Accomodation,124250,COMU-Communities,JBC-Homelessness
South Ribble Council,http://Statistics.Data.gov.uk\Doc\Local Authority\30UN,31/10/2022,157.96,Travelodge Southport PR8 1RN,NAME REDACTED Travelodge Southport PR8 1RN 31.10,Accomodation,124250,COMU-Communities,JBC-Homelessness
South Ribble Council,http://Statistics.Data.gov.uk\Doc\Local Authority\30UN,31/10/2022,164.27,Travelodge Southport PR8 1RN,NAME REDACTED Travelodge Southport PR8 1RN 31.10,Accomodation,124250,COMU-Communities,JBC-Homelessness
South Ribble Council,http://Statistics.Data.gov.uk\Doc\Local Authority\30UN,31/10/2022,219.00,Hoseasons Beacon Fell View PR3 2TF,NAME REDACTED Hoseasons Beacon Fell View PR3 2TF,Accomodation,124050,COMU-Communities,JBC-Homelessness
South Ribble Council,http://Statistics.Data.gov.uk\Doc\Local Authority\30UN,04/11/2022,-219.00,Hoseasons Beacon Fell View PR3 2TF,refund for homeless placement not used - the originally booking was the following: NAME REDACTED,Refund,124050,COMU-Communities,JBC-Homelessness
South Ribble Council,http://Statistics.Data.gov.uk\Doc\Local Authority\30UN,15/11/2022,99.45,Premier Inn Preston Central PR1 2AB,NAME REDACTED Premier Inn Preston Central PR1 2A,Accomodation,124250,COMU-Communities,JBC-Homelessness
South Ribble Council,http://Statistics.Data.gov.uk\Doc\Local Authority\30UN,15/11/2022,110.50,Premier Inn Preston South PR5 6BZ,NAME REDACTED Premier Inn Preston South PR5 6BZ ,Accomodation,124250,COMU-Communities,JBC-Homelessness
South Ribble Council,http://Statistics.Data.gov.uk\Doc\Local Authority\30UN,16/11/2022,90.10,Premier Inn Preston Central PR1 2AB,NAME REDACTED Premier Inn Preston Central PR1 2A,Accomodation,124250,COMU-Communities,JBC-Homelessness
South Ribble Council,http://Statistics.Data.gov.uk\Doc\Local Authority\30UN,01/12/2022,58.65,Premier Inn Preston South PR5 6BZ,NAME REDACTED Premier Inn Preston South PR5 6BZ ,Accomodation,124250,COMU-Communities,JBC-Homelessness
South Ribble Council,http://Statistics.Data.gov.uk\Doc\Local Authority\30UN,06/12/2022,74.80,Premier Inn Bolton Stadium Arena BL6 6LB,NAME REDACTED Premier Inn Bolton Stadium Arena B,Accomodation,124050,COMU-Communities,JBC-Homelessness
South Ribble Council,http://Statistics.Data.gov.uk\Doc\Local Authority\30UN,06/12/2022,110.50,Premier Inn Preston Central PR1 2AB,NAME REDACTED Premier Inn Preston Central PR1 2A,Accomodation,124050,COMU-Communities,JBC-Homelessness
South Ribble Council,http://Statistics.Data.gov.uk\Doc\Local Authority\30UN,07/12/2022,508.90,Travelodge Preston Chorley PR6 7JB,NAME REDACTED Travelodge Preston Chorley PR6 7JB,Accomodation,124050,COMU-Communities,JBC-Homelessness
South Ribble Council,http://Statistics.Data.gov.uk\Doc\Local Authority\30UN,09/12/2022,220.00,ibis Preston North PR3 5JE,NAME REDACTED ibis Preston North PR3 5JE 09.12.2,Accomodation,124250,COMU-Communities,JBC-Homelessness
South Ribble Council,http://Statistics.Data.gov.uk\Doc\Local Authority\30UN,15/12/2022,116.45,Premier Inn Preston Central PR1 2AB,NAME REDACTED Premier Inn Preston Central PR1 2A,Accomodation,124250,COMU-Communities,JBC-Homelessness
South Ribble Council,http://Statistics.Data.gov.uk\Doc\Local Authority\30UN,16/12/2022,230.35,Premier Inn Preston Central PR1 2AB,NAME REDACTED Premier Inn Preston Central PR1 2A,Accomodation,124250,COMU-Communities,JBC-Homelessness
South Ribble Council,http://Statistics.Data.gov.uk\Doc\Local Authority\30UN,20/12/2022,62.05,Premier Inn Preston Central PR1 2AB,NAME REDACTED Premier Inn Preston Central PR1 2A,Accomodation,124250,COMU-Communities,JBC-Homelessness
South Ribble Council,http://Statistics.Data.gov.uk\Doc\Local Authority\30UN,20/12/2022,77.35,Premier Inn Preston South PR5 6BZ,NAME REDACTED Premier Inn Preston South PR5 6BZ ,Accomodation,124250,COMU-Communities,JBC-Homelessness
South Ribble Council,http://Statistics.Data.gov.uk\Doc\Local Authority\30UN,24/11/2022,6.00,Barclaycard,COURIER FEE � BARCLAYCARD CREDIT CARD DELIVERY VIA DPD (6.00 FEE) � NAME REDACTED NEW BARCLAYCARD CREDIT CARD � DELIVERY DATE WAS 24/11/22 � NEXT DAY DELIVERY CHARGE OF 6.00,Online Purchase,124130,COMU-Communities,JBC-Homelessness
South Ribble Council,http://Statistics.Data.gov.uk\Doc\Local Authority\30UN,30/11/2022,60.16,Travelodge Preston Chorley PR6 7JB,NAME REDACTED Travelodge Preston Chorley PR6 7JB,Accomodation,124250,COMU-Communities,JBC-Homelessness
South Ribble Council,http://Statistics.Data.gov.uk\Doc\Local Authority\30UN,30/11/2022,67.15,Premier Inn Preston South PR5 6BZ,NAME REDACTED Premier Inn Preston South PR5 6BZ ,Accomodation,124250,COMU-Communities,JBC-Homelessness
South Ribble Council,http://Statistics.Data.gov.uk\Doc\Local Authority\30UN,30/11/2022,67.15,Premier Inn Preston South PR5 6BZ,NAME REDACTED Premier Inn Preston South PR5 6BZ ,Accomodation,124250,COMU-Communities,JBC-Homelessness
South Ribble Council,http://Statistics.Data.gov.uk\Doc\Local Authority\30UN,13/12/2022,10.00,Avacab Leyland Taxis,"Taxi transportation, 13.12.22, with Avacab Leyland, for individual,NAME REDACTED to get back home",Accomodation,124250,COMU-Communities,JBC-Homelessness
South Ribble Council,http://Statistics.Data.gov.uk\Doc\Local Authority\30UN,13/12/2022,79.90,Premier Inn Preston South (Craven Drive),NAME REDACTED Premier Inn Preston South (Craven ,Accomodation,124250,COMU-Communities,JBC-Homelessness
South Ribble Council,http://Statistics.Data.gov.uk\Doc\Local Authority\30UN,13/12/2022,79.90,Premier Inn Preston South PR5 6BZ,NAME REDACTED Premier Inn Preston South PR5 6BZ ,Accomodation,124250,COMU-Communities,JBC-Homelessness
South Ribble Council,http://Statistics.Data.gov.uk\Doc\Local Authority\30UN,13/12/2022,79.90,Premier Inn Preston South PR5 6BZ,NAME REDACTED Premier Inn Preston South PR5 6BZ ,Accomodation,124250,COMU-Communities,JBC-Homelessness
South Ribble Council,http://Statistics.Data.gov.uk\Doc\Local Authority\30UN,14/12/2022,73.95,Premier Inn Preston South PR5 6BZ,NAME REDACTED Premier Inn Preston South PR5 6BZ ,Accomodation,124250,COMU-Communities,JBC-Homelessness
South Ribble Council,http://Statistics.Data.gov.uk\Doc\Local Authority\30UN,14/12/2022,73.95,Premier Inn Preston South PR5 6BZ,NAME REDACTED Premier Inn Preston South PR5 6BZ ,Accomodation,124250,COMU-Communities,JBC-Homelessness
South Ribble Council,http://Statistics.Data.gov.uk\Doc\Local Authority\30UN,21/12/2022,65.45,Premier Inn Preston South PR5 6BZ,NAME REDACTED Premier Inn Preston South PR5 6BZ ,Accomodation,124250,COMU-Communities,JBC-Homelessness
South Ribble Council,http://Statistics.Data.gov.uk\Doc\Local Authority\30UN,21/12/2022,65.45,Premier Inn Preston Central PR1 2AB,NAME REDACTED Premier Inn Preston Central PR1 2A,Accomodation,124250,COMU-Communities,JBC-Homelessness
South Ribble Council,http://Statistics.Data.gov.uk\Doc\Local Authority\30UN,21/12/2022,219.00,Holiday Inn Express Preston South PR58AA,NAME REDACTED Holiday Inn Express Preston South ,Accomodation,124050,COMU-Communities,JBC-Homelessness
South Ribble Council,http://Statistics.Data.gov.uk\Doc\Local Authority\30UN,18/12/2022,249.85,AVANTI,TRAIN FOR CLLR NAME REDACTED,Rail Fare,143200,CDIG-Customer and Digital,JCB-Revenue and Benefits
South Ribble Council,http://Statistics.Data.gov.uk\Doc\Local Authority\30UN,17/12/2022,138.55,Premier Inn - Preston South,Hotel room for 2 nights as per OOH Homelessness procedure,Online Purchase,124250,COMU-Communities,JBB-Environmental Health
South Ribble Council,http://Statistics.Data.gov.uk\Doc\Local Authority\30UN,19/12/2022,59.00,Premier Inn,Emergency accomodation - extra charge added by Premier Inn,Accomodation,124250,COMU-Communities,JBB-Environmental Health
